Publisher Label,Publisher URI,"Supplier ID","Supplier","Invoice No.","Amount (£)","Purpose","Transaction Number","Payment Date","Organisational Unit","Cost Centre(T)","Internal Category Number"
"Wolverhampton City Council","http://opendatacommunities.org/id/metropolitan-district-council/wolverhampton","705916","Nobisco Limited","503181","195.48","Cleaning Supplies and Materials","130191192","18/10/2017","Markets","Bilston Market and Licensed Operations","R2705"
"Wolverhampton City Council","http://opendatacommunities.org/id/metropolitan-district-council/wolverhampton","705916","Nobisco Limited","499601","253.67","Cleaning Supplies and Materials","130188654","26/10/2017","Catering","Education Catering - General Overheads","R2705"
"Wolverhampton City Council","http://opendatacommunities.org/id/metropolitan-district-council/wolverhampton","705916","Nobisco Limited","504263","190.80","Cleaning Supplies and Materials","130192114","26/10/2017","Cleaning","Cleaning of Buildings - General","R2705"
"Wolverhampton City Council","http://opendatacommunities.org/id/metropolitan-district-council/wolverhampton","705916","Nobisco Limited","504265","35.52","Cleaning Supplies and Materials","130192116","26/10/2017","Learning Disability Provider","Ernest Bold Court","R2705"
"Wolverhampton City Council","http://opendatacommunities.org/id/metropolitan-district-council/wolverhampton","705916","Nobisco Limited","504437","82.04","Cleaning Supplies and Materials","130192302","26/10/2017","Cleaning","Cleaning of Buildings - General","R2705"
"Wolverhampton City Council","http://opendatacommunities.org/id/metropolitan-district-council/wolverhampton","705916","Nobisco Limited","504437","0.04","Cleaning Supplies and Materials","130192302","26/10/2017","Cleaning","Cleaning of Buildings - General","R2705"
"Wolverhampton City Council","http://opendatacommunities.org/id/metropolitan-district-council/wolverhampton","705916","Nobisco Limited","502546","1,671.60","Cleaning Supplies and Materials","130190684","13/10/2017","Environmental Maintenance","Ground Maintenance East","R2705"
"Wolverhampton City Council","http://opendatacommunities.org/id/metropolitan-district-council/wolverhampton","705916","Nobisco Limited","504264","2,809.31","Cleaning Supplies and Materials","130192115","27/10/2017","Catering","Education Catering - General Overheads","R2705"
"Wolverhampton City Council","http://opendatacommunities.org/id/metropolitan-district-council/wolverhampton","705916","Nobisco Limited","504812","277.17","Cleaning Supplies and Materials","130192594","27/10/2017","Visitor Economy","Catering Overhead Account","R2705"
"Wolverhampton City Council","http://opendatacommunities.org/id/metropolitan-district-council/wolverhampton","705916","Nobisco Limited","501820","23.78","Cleaning Supplies and Materials","130190171","06/10/2017","Visitor Economy","Art Gallery Tea Room","R2705"
"Wolverhampton City Council","http://opendatacommunities.org/id/metropolitan-district-council/wolverhampton","705916","Nobisco Limited","7951","-8.34","Cleaning Supplies and Materials","130186773","20/10/2017","Catering","Education Catering - General Overheads","R2705"
"Wolverhampton City Council","http://opendatacommunities.org/id/metropolitan-district-council/wolverhampton","705916","Nobisco Limited","500999","82.40","Cleaning Supplies and Materials","130189545","04/10/2017","Markets","Wholesale Market Facilities Management","R2705"
"Wolverhampton City Council","http://opendatacommunities.org/id/metropolitan-district-council/wolverhampton","705916","Nobisco Limited","501003","2.24","Cleaning Supplies and Materials","130189549","04/10/2017","Catering","Education Catering - General Overheads","R2705"
"Wolverhampton City Council","http://opendatacommunities.org/id/metropolitan-district-council/wolverhampton","705916","Nobisco Limited","501202","20.10","Cleaning Supplies and Materials","130189680","04/10/2017","Learning Disability Provider","Duke Street Bungalows","R2705"
"Wolverhampton City Council","http://opendatacommunities.org/id/metropolitan-district-council/wolverhampton","705916","Nobisco Limited","501621","15.50","Cleaning Supplies and Materials","130190041","04/10/2017","Bereavement Services","Coroners","R2705"
"Wolverhampton City Council","http://opendatacommunities.org/id/metropolitan-district-council/wolverhampton","705916","Nobisco Limited","501621","14.00","Cleaning Supplies and Materials","130190041","04/10/2017","Bereavement Services","Coroners","R2705"
"Wolverhampton City Council","http://opendatacommunities.org/id/metropolitan-district-council/wolverhampton","705916","Nobisco Limited","501621","3.32","Cleaning Supplies and Materials","130190041","04/10/2017","Bereavement Services","Coroners","R2705"
"Wolverhampton City Council","http://opendatacommunities.org/id/metropolitan-district-council/wolverhampton","705916","Nobisco Limited","502136","404.56","Cleaning Supplies and Materials","130190329","11/10/2017","Cleaning","Cleaning of Buildings - General","R2705"
"Wolverhampton City Council","http://opendatacommunities.org/id/metropolitan-district-council/wolverhampton","705916","Nobisco Limited","502359","2.01","Cleaning Supplies and Materials","130190491","11/10/2017","Adult Education","Service Wide","R2705"
"Wolverhampton City Council","http://opendatacommunities.org/id/metropolitan-district-council/wolverhampton","705916","Nobisco Limited","502547","1,114.40","Cleaning Supplies and Materials","130190685","11/10/2017","Environmental Maintenance","Ground Maintenance East","R2705"
"Wolverhampton City Council","http://opendatacommunities.org/id/metropolitan-district-council/wolverhampton","705916","Nobisco Limited","491137","866.93","Cleaning Supplies and Materials","130178728","11/10/2017","Catering","Education Catering - General Overheads","R2705"
"Wolverhampton City Council","http://opendatacommunities.org/id/metropolitan-district-council/wolverhampton","705916","Nobisco Limited","502549","215.00","Cleaning Supplies and Materials","130190687","11/10/2017","Cleaning","Public Conveniences","R2705"
"Wolverhampton City Council","http://opendatacommunities.org/id/metropolitan-district-council/wolverhampton","705916","Nobisco Limited","502755","2,281.57","Cleaning Supplies and Materials","130190855","11/10/2017","Visitor Economy","Catering Overhead Account","R2705"
"Wolverhampton City Council","http://opendatacommunities.org/id/metropolitan-district-council/wolverhampton","705916","Nobisco Limited","502358","146.26","Cleaning Supplies and Materials","130190490","11/10/2017","Learning Disability Provider","Support Plus","R2705"
"Wolverhampton City Council","http://opendatacommunities.org/id/metropolitan-district-council/wolverhampton","705916","Nobisco Limited","502362","167.38","Cleaning Supplies and Materials","130190494","11/10/2017","Specialist Support","Upper Pendeford Farm Short Breaks Centre","R2705"
"Wolverhampton City Council","http://opendatacommunities.org/id/metropolitan-district-council/wolverhampton","705916","Nobisco Limited","500092","126.69","Cleaning Supplies and Materials","130188982","13/10/2017","Catering","Education Catering - General Overheads","R2705"
"Wolverhampton City Council","http://opendatacommunities.org/id/metropolitan-district-council/wolverhampton","705916","Nobisco Limited","505116","149.72","Cleaning Supplies and Materials","130192759","27/10/2017","Catering","Education Catering - General Overheads","R2705"
"Wolverhampton City Council","http://opendatacommunities.org/id/metropolitan-district-council/wolverhampton","705916","Nobisco Limited","504603","143.86","Cleaning Supplies and Materials","130192443","27/10/2017","Visitor Economy","Catering Overhead Account","R2705"
"Wolverhampton City Council","http://opendatacommunities.org/id/metropolitan-district-council/wolverhampton","705916","Nobisco Limited","491974","1.06","Cleaning Supplies and Materials","130179589","20/10/2017","Catering","Education Catering - General Overheads","R2705"
"Wolverhampton City Council","http://opendatacommunities.org/id/metropolitan-district-council/wolverhampton","705916","Nobisco Limited","502137","11.85","Cleaning Supplies and Materials","130190330","06/10/2017","Cleaning","Cleaning of Buildings - General","R2705"
"Wolverhampton City Council","http://opendatacommunities.org/id/metropolitan-district-council/wolverhampton","705916","Nobisco Limited","501622","170.44","Cleaning Supplies and Materials","130190042","04/10/2017","Adult Education","The Maltings","R2705"
"Wolverhampton City Council","http://opendatacommunities.org/id/metropolitan-district-council/wolverhampton","705916","Nobisco Limited","501001","112.00","Cleaning Supplies and Materials","130189547","04/10/2017","Cleaning","Cleaning of Buildings - General","R2705"
"Wolverhampton City Council","http://opendatacommunities.org/id/metropolitan-district-council/wolverhampton","705916","Nobisco Limited","499896","247.32","Cleaning Supplies and Materials","130188828","04/10/2017","Leisure Services","Bert Williams Leisure Centre","R2705"
"Wolverhampton City Council","http://opendatacommunities.org/id/metropolitan-district-council/wolverhampton","705916","Nobisco Limited","499896","-247.32","Cleaning Supplies and Materials","130188828","04/10/2017","Leisure Services","Bert Williams Leisure Centre","R2705"
"Wolverhampton City Council","http://opendatacommunities.org/id/metropolitan-district-council/wolverhampton","705916","Nobisco Limited","499896","305.32","Cleaning Supplies and Materials","130188828","04/10/2017","Leisure Services","Bert Williams Leisure Centre","R2705"
"Wolverhampton City Council","http://opendatacommunities.org/id/metropolitan-district-council/wolverhampton","705916","Nobisco Limited","503769","33.73","Cleaning Supplies and Materials","130191765","26/10/2017","Adult Education","The Maltings","R2705"
"Wolverhampton City Council","http://opendatacommunities.org/id/metropolitan-district-council/wolverhampton","705916","Nobisco Limited","503183","74.00","Cleaning Supplies and Materials","130191194","26/10/2017","Learning Disability Provider","Duke Street Bungalows","R2705"
"Wolverhampton City Council","http://opendatacommunities.org/id/metropolitan-district-council/wolverhampton","705916","Nobisco Limited","504270","109.80","Protective Clothing","130192121","26/10/2017","Older People Provider Services","Bradley Lodge Resource Centre","R4200"
"Wolverhampton City Council","http://opendatacommunities.org/id/metropolitan-district-council/wolverhampton","705916","Nobisco Limited","503186","113.44","Cleaning Supplies and Materials","130191196","18/10/2017","Independent Living Service","Independent Living Service","R2705"
"Wolverhampton City Council","http://opendatacommunities.org/id/metropolitan-district-council/wolverhampton","705916","Nobisco Limited","503186","62.73","Cleaning Supplies and Materials","130191196","18/10/2017","Independent Living Service","Independent Living Service","R2705"
"Wolverhampton City Council","http://opendatacommunities.org/id/metropolitan-district-council/wolverhampton","705916","Nobisco Limited","503186","14.34","Cleaning Supplies and Materials","130191196","18/10/2017","Independent Living Service","Independent Living Service","R2705"
"Wolverhampton City Council","http://opendatacommunities.org/id/metropolitan-district-council/wolverhampton","705916","Nobisco Limited","503179","390.87","Cleaning Supplies and Materials","130191190","18/10/2017","Catering","Education Catering - General Overheads","R2705"
"Wolverhampton City Council","http://opendatacommunities.org/id/metropolitan-district-council/wolverhampton","705916","Nobisco Limited","501388","351.78","Cleaning Supplies and Materials","130189888","04/10/2017","Catering","Education Catering - General Overheads","R2705"
"Wolverhampton City Council","http://opendatacommunities.org/id/metropolitan-district-council/wolverhampton","705916","Nobisco Limited","501002","50.16","Cleaning Supplies and Materials","130189548","04/10/2017","Catering","Education Catering - General Overheads","R2705"
"Wolverhampton City Council","http://opendatacommunities.org/id/metropolitan-district-council/wolverhampton","705916","Nobisco Limited","501199","2.93","Cleaning Supplies and Materials","130189677","04/10/2017","Catering","Education Catering - General Overheads","R2705"
"Wolverhampton City Council","http://opendatacommunities.org/id/metropolitan-district-council/wolverhampton","705916","Nobisco Limited","501004","102.35","Cleaning Supplies and Materials","130189550","04/10/2017","Leisure Services","Bert Williams Leisure Centre Caf�","R2705"
"Wolverhampton City Council","http://opendatacommunities.org/id/metropolitan-district-council/wolverhampton","705916","Nobisco Limited","502360","1,579.68","Cleaning Supplies and Materials","130190492","13/10/2017","Cleaning","Cleaning of Buildings - General","R2705"
"Wolverhampton City Council","http://opendatacommunities.org/id/metropolitan-district-council/wolverhampton","705916","Nobisco Limited","503969","49.05","Cleaning Supplies and Materials","130191923","20/10/2017","Older People Provider Services","Bradley Lodge Resource Centre","R2705"
"Wolverhampton City Council","http://opendatacommunities.org/id/metropolitan-district-council/wolverhampton","705916","Nobisco Limited","504268","101.31","Cleaning Supplies and Materials","130192119","27/10/2017","Visitor Economy","Bantock - Tea Rooms","R2705"
"Wolverhampton City Council","http://opendatacommunities.org/id/metropolitan-district-council/wolverhampton","705916","Nobisco Limited","505119","171.60","Cleaning Supplies and Materials","130192762","27/10/2017","Visitor Economy","The Little Civic","R2705"
"Wolverhampton City Council","http://opendatacommunities.org/id/metropolitan-district-council/wolverhampton","705916","Nobisco Limited","502752","161.20","Cleaning Supplies and Materials","130190852","26/10/2017","Learning Disability Provider","Duke Street Bungalows","R2705"
"Wolverhampton City Council","http://opendatacommunities.org/id/metropolitan-district-council/wolverhampton","705916","Nobisco Limited","504436","269.48","Cleaning Supplies and Materials","130192301","26/10/2017","Catering","Education Catering - General Overheads","R2705"
"Wolverhampton City Council","http://opendatacommunities.org/id/metropolitan-district-council/wolverhampton","705916","Nobisco Limited","504438","173.84","Cleaning Supplies and Materials","130192303","26/10/2017","Markets","Wolverhampton Indoor and Open Market","R2705"
"Wolverhampton City Council","http://opendatacommunities.org/id/metropolitan-district-council/wolverhampton","705916","Nobisco Limited","504262","24.00","Cleaning Supplies and Materials","130192113","26/10/2017","Cleaning","Cleaning of Buildings - General","R2705"
"Wolverhampton City Council","http://opendatacommunities.org/id/metropolitan-district-council/wolverhampton","705916","Nobisco Limited","504262","247.20","Cleaning Supplies and Materials","130192113","26/10/2017","Cleaning","Cleaning of Buildings - General","R2705"
"Wolverhampton City Council","http://opendatacommunities.org/id/metropolitan-district-council/wolverhampton","705916","Nobisco Limited","504262","189.00","Cleaning Supplies and Materials","130192113","26/10/2017","Cleaning","Cleaning of Buildings - General","R2705"
"Wolverhampton City Council","http://opendatacommunities.org/id/metropolitan-district-council/wolverhampton","705916","Nobisco Limited","504262","221.60","Cleaning Supplies and Materials","130192113","26/10/2017","Cleaning","Cleaning of Buildings - General","R2705"
"Wolverhampton City Council","http://opendatacommunities.org/id/metropolitan-district-council/wolverhampton","705916","Nobisco Limited","503178","46.16","Cleaning Supplies and Materials","130191189","18/10/2017","Cleaning","Cleaning of Buildings - General","R2705"
"Wolverhampton City Council","http://opendatacommunities.org/id/metropolitan-district-council/wolverhampton","705916","Nobisco Limited","503587","674.00","Cleaning Supplies and Materials","130191561","18/10/2017","Cleaning","Cleaning of Buildings - General","R2705"
"Wolverhampton City Council","http://opendatacommunities.org/id/metropolitan-district-council/wolverhampton","705916","Nobisco Limited","490240","75.24","Cleaning Supplies and Materials","130177867","11/10/2017","Catering","Education Catering - General Overheads","R2705"
"Wolverhampton City Council","http://opendatacommunities.org/id/metropolitan-district-council/wolverhampton","705916","Nobisco Limited","501620","249.56","Cleaning Supplies and Materials","130190040","11/10/2017","Adult Education","Service Wide","R2705"
"Wolverhampton City Council","http://opendatacommunities.org/id/metropolitan-district-council/wolverhampton","705916","Nobisco Limited","495386","39.71","Cleaning Supplies and Materials","130183864","11/10/2017","Learning Disability Provider","Duke Street Bungalows","R2705"
"Wolverhampton City Council","http://opendatacommunities.org/id/metropolitan-district-council/wolverhampton","705916","Nobisco Limited","502754","167.78","Cleaning Supplies and Materials","130190854","11/10/2017","Visitor Economy","Bantock - Tea Rooms","R2705"
"Wolverhampton City Council","http://opendatacommunities.org/id/metropolitan-district-council/wolverhampton","705916","Nobisco Limited","497422","60.86","Cleaning Supplies and Materials","130186700","11/10/2017","Catering","Education Catering - General Overheads","R2705"
"Wolverhampton City Council","http://opendatacommunities.org/id/metropolitan-district-council/wolverhampton","705916","Nobisco Limited","502750","1,952.97","Cleaning Supplies and Materials","130190850","11/10/2017","Catering","Education Catering - General Overheads","R2705"
"Wolverhampton City Council","http://opendatacommunities.org/id/metropolitan-district-council/wolverhampton","705916","Nobisco Limited","502548","39.60","Cleaning Supplies and Materials","130190686","11/10/2017","Visitor Economy","Art Gallery Tea Room","R2705"
"Wolverhampton City Council","http://opendatacommunities.org/id/metropolitan-district-council/wolverhampton","705916","Nobisco Limited","502753","118.72","Cleaning Supplies and Materials","130190853","11/10/2017","Leisure Services","Bert Williams Leisure Centre Caf�","R2705"
"Wolverhampton City Council","http://opendatacommunities.org/id/metropolitan-district-council/wolverhampton","705916","Nobisco Limited","502545","93.97","Cleaning Supplies and Materials","130190683","13/10/2017","Catering","Education Catering - General Overheads","R2705"
"Wolverhampton City Council","http://opendatacommunities.org/id/metropolitan-district-council/wolverhampton","705916","Nobisco Limited","502139","247.20","Cleaning Supplies and Materials","130190331","06/10/2017","Cleaning","Cleaning of Buildings - General","R2705"
"Wolverhampton City Council","http://opendatacommunities.org/id/metropolitan-district-council/wolverhampton","705916","Nobisco Limited","502139","674.00","Cleaning Supplies and Materials","130190331","06/10/2017","Cleaning","Cleaning of Buildings - General","R2705"
"Wolverhampton City Council","http://opendatacommunities.org/id/metropolitan-district-council/wolverhampton","705916","Nobisco Limited","502139","170.40","Cleaning Supplies and Materials","130190331","06/10/2017","Cleaning","Cleaning of Buildings - General","R2705"
"Wolverhampton City Council","http://opendatacommunities.org/id/metropolitan-district-council/wolverhampton","705916","Nobisco Limited","502139","221.60","Cleaning Supplies and Materials","130190331","06/10/2017","Cleaning","Cleaning of Buildings - General","R2705"
"Wolverhampton City Council","http://opendatacommunities.org/id/metropolitan-district-council/wolverhampton","705916","Nobisco Limited","502139","77.92","Cleaning Supplies and Materials","130190331","06/10/2017","Cleaning","Cleaning of Buildings - General","R2705"
"Wolverhampton City Council","http://opendatacommunities.org/id/metropolitan-district-council/wolverhampton","705916","Nobisco Limited","505117","27.00","Cleaning Supplies and Materials","130192760","27/10/2017","Learning Disability Provider","Ernest Bold Court","R2705"
"Wolverhampton City Council","http://opendatacommunities.org/id/metropolitan-district-council/wolverhampton","705916","Nobisco Limited","505118","98.41","Cleaning Supplies and Materials","130192761","27/10/2017","Visitor Economy","Art Gallery Tea Room","R2705"
"Wolverhampton City Council","http://opendatacommunities.org/id/metropolitan-district-council/wolverhampton","705916","Nobisco Limited","496166","1.40","Cleaning Supplies and Materials","130185238","20/10/2017","Catering","Education Catering - General Overheads","R2705"
"Wolverhampton City Council","http://opendatacommunities.org/id/metropolitan-district-council/wolverhampton","705916","Nobisco Limited","501000","3,267.94","Cleaning Supplies and Materials","130189546","04/10/2017","Cleaning","Cleaning of Buildings - General","R2705"
"Wolverhampton City Council","http://opendatacommunities.org/id/metropolitan-district-council/wolverhampton","705916","Nobisco Limited","501200","106.21","Cleaning Supplies and Materials","130189678","04/10/2017","Markets","Bilston Market and Licensed Operations","R2705"
"Wolverhampton City Council","http://opendatacommunities.org/id/metropolitan-district-council/wolverhampton","705916","Nobisco Limited","501201","1,460.00","Cleaning Supplies and Materials","130189679","04/10/2017","Cleaning","Cleaning of Buildings - General","R2705"
"Wolverhampton City Council","http://opendatacommunities.org/id/metropolitan-district-council/wolverhampton","705916","Nobisco Limited","501210","380.58","Cleaning Supplies and Materials","130189681","04/10/2017","Visitor Economy","The Little Civic","R2705"
"Wolverhampton City Council","http://opendatacommunities.org/id/metropolitan-district-council/wolverhampton","705916","Nobisco Limited","501005","81.15","Cleaning Supplies and Materials","130189551","04/10/2017","Visitor Economy","Bantock - Tea Rooms","R2705"
"Wolverhampton City Council","http://opendatacommunities.org/id/metropolitan-district-council/wolverhampton","705916","Nobisco Limited","503387","69.44","Cleaning Supplies and Materials","130191353","26/10/2017","Older People Provider Services","Blakenhall Resource Centre","R2705"
"Wolverhampton City Council","http://opendatacommunities.org/id/metropolitan-district-council/wolverhampton","705916","Nobisco Limited","503182","94.62","Cleaning Supplies and Materials","130191193","18/10/2017","Learning Disability Provider","Ernest Bold Court","R2705"
"Wolverhampton City Council","http://opendatacommunities.org/id/metropolitan-district-council/wolverhampton","705916","Nobisco Limited","503770","108.96","Cleaning Supplies and Materials","130191766","18/10/2017","Environmental Maintenance","Ground Maintenance West","R2705"
"Wolverhampton City Council","http://opendatacommunities.org/id/metropolitan-district-council/wolverhampton","705916","Nobisco Limited","504266","103.60","Cleaning Supplies and Materials","130192117","26/10/2017","Learning Disability Provider","Duke Street Bungalows","R2705"
"Wolverhampton City Council","http://opendatacommunities.org/id/metropolitan-district-council/wolverhampton","705916","Nobisco Limited","504269","73.20","Protective Clothing","130192120","26/10/2017","Older People Provider Services","Reablement Team","R4200"
"Wolverhampton City Council","http://opendatacommunities.org/id/metropolitan-district-council/wolverhampton","705916","Nobisco Limited","502751","435.32","Cleaning Supplies and Materials","130190851","26/10/2017","Learning Disability Provider","Duke Street Bungalows","R2705"
"Wolverhampton City Council","http://opendatacommunities.org/id/metropolitan-district-council/wolverhampton","705916","Nobisco Limited","503180","62.08","Cleaning Supplies and Materials","130191191","18/10/2017","Adult Education","Service Wide","R2705"
"Wolverhampton City Council","http://opendatacommunities.org/id/metropolitan-district-council/wolverhampton","705928","Norseman Direct Limited","17 59715","488.00","Equipment - Purchase","130187847","04/10/2017","Catering","Education Catering - General Overheads","R4000"
"Wolverhampton City Council","http://opendatacommunities.org/id/metropolitan-district-council/wolverhampton","705945","Northgate Public Services (UK) Limited","91396666","1,231.90","Services - Professional Fees","130190857","27/10/2017","Customer Services","City Direct","R4400"
"Wolverhampton City Council","http://opendatacommunities.org/id/metropolitan-district-council/wolverhampton","705945","Northgate Public Services (UK) Limited","91395735","2,625.00","Computing - Purchase of Software","130188136","04/10/2017","Revenues & Benefits","Revenues","R4531"
"Wolverhampton City Council","http://opendatacommunities.org/id/metropolitan-district-council/wolverhampton","705945","Northgate Public Services (UK) Limited","91396335","3,155.00","Computing - Purchase of Software","130190856","26/10/2017","Revenues & Benefits","Revenues","R4531"
"Wolverhampton City Council","http://opendatacommunities.org/id/metropolitan-district-council/wolverhampton","705946","Northgate Vehicle Hire Limited","SL04652522IN","304.08","Hire of Vehicles","190386686","26/10/2017","Fleet Services","Fleet Management","R3200"
"Wolverhampton City Council","http://opendatacommunities.org/id/metropolitan-district-council/wolverhampton","705946","Northgate Vehicle Hire Limited","SL04652543IN","292.53","Hire of Vehicles","190386707","26/10/2017","Fleet Services","Fleet Management","R3200"
"Wolverhampton City Council","http://opendatacommunities.org/id/metropolitan-district-council/wolverhampton","705946","Northgate Vehicle Hire Limited","SL04652551IN","292.53","Hire of Vehicles","190386715","26/10/2017","Fleet Services","Fleet Management","R3200"
"Wolverhampton City Council","http://opendatacommunities.org/id/metropolitan-district-council/wolverhampton","705946","Northgate Vehicle Hire Limited","SL04652554IN","181.86","Hire of Vehicles","190386717","26/10/2017","Fleet Services","Fleet Management","R3200"
"Wolverhampton City Council","http://opendatacommunities.org/id/metropolitan-district-council/wolverhampton","705946","Northgate Vehicle Hire Limited","IW03571641","229.75","Hire of Vehicles","190386677","26/10/2017","Fleet Services","Fleet Management","R3200"
"Wolverhampton City Council","http://opendatacommunities.org/id/metropolitan-district-council/wolverhampton","705946","Northgate Vehicle Hire Limited","SL04652518IN","292.53","Hire of Vehicles","190386682","26/10/2017","Fleet Services","Fleet Management","R3200"
"Wolverhampton City Council","http://opendatacommunities.org/id/metropolitan-district-council/wolverhampton","705946","Northgate Vehicle Hire Limited","NTGSL0056977","342.32","Hire of Vehicles","190383767","18/10/2017","Fleet Services","Fleet Management","R3200"
"Wolverhampton City Council","http://opendatacommunities.org/id/metropolitan-district-council/wolverhampton","705946","Northgate Vehicle Hire Limited","NTGSL0056974","306.46","Hire of Vehicles","190383764","18/10/2017","Fleet Services","Fleet Management","R3200"
"Wolverhampton City Council","http://opendatacommunities.org/id/metropolitan-district-council/wolverhampton","705946","Northgate Vehicle Hire Limited","NTGSL0056976","318.56","Hire of Vehicles","190383766","18/10/2017","Fleet Services","Fleet Management","R3200"
"Wolverhampton City Council","http://opendatacommunities.org/id/metropolitan-district-council/wolverhampton","705946","Northgate Vehicle Hire Limited","SL04612224IN","306.46","Hire of Vehicles","190379551","04/10/2017","Fleet Services","Fleet Management","R3200"
"Wolverhampton City Council","http://opendatacommunities.org/id/metropolitan-district-council/wolverhampton","705946","Northgate Vehicle Hire Limited","SL04652537IN","292.53","Hire of Vehicles","190386701","26/10/2017","Fleet Services","Fleet Management","R3200"
"Wolverhampton City Council","http://opendatacommunities.org/id/metropolitan-district-council/wolverhampton","705946","Northgate Vehicle Hire Limited","SL04652519IN","292.53","Hire of Vehicles","190386683","26/10/2017","Fleet Services","Fleet Management","R3200"
"Wolverhampton City Council","http://opendatacommunities.org/id/metropolitan-district-council/wolverhampton","705946","Northgate Vehicle Hire Limited","SL04652525IN","292.53","Hire of Vehicles","190386689","26/10/2017","Fleet Services","Fleet Management","R3200"
"Wolverhampton City Council","http://opendatacommunities.org/id/metropolitan-district-council/wolverhampton","705946","Northgate Vehicle Hire Limited","SL04652541IN","326.76","Hire of Vehicles","190386705","26/10/2017","Fleet Services","Fleet Management","R3200"
"Wolverhampton City Council","http://opendatacommunities.org/id/metropolitan-district-council/wolverhampton","705946","Northgate Vehicle Hire Limited","SL04652529IN","326.76","Hire of Vehicles","190386693","26/10/2017","Fleet Services","Fleet Management","R3200"
"Wolverhampton City Council","http://opendatacommunities.org/id/metropolitan-district-council/wolverhampton","705946","Northgate Vehicle Hire Limited","SL04652516IN","326.76","Hire of Vehicles","190386680","26/10/2017","Fleet Services","Fleet Management","R3200"
"Wolverhampton City Council","http://opendatacommunities.org/id/metropolitan-district-council/wolverhampton","705946","Northgate Vehicle Hire Limited","SL04652524IN","292.53","Hire of Vehicles","190386688","26/10/2017","Fleet Services","Fleet Management","R3200"
"Wolverhampton City Council","http://opendatacommunities.org/id/metropolitan-district-council/wolverhampton","705946","Northgate Vehicle Hire Limited","SL04652533IN","292.53","Hire of Vehicles","190386697","26/10/2017","Fleet Services","Fleet Management","R3200"
"Wolverhampton City Council","http://opendatacommunities.org/id/metropolitan-district-council/wolverhampton","705946","Northgate Vehicle Hire Limited","SL04652542IN","320.25","Hire of Vehicles","190386706","26/10/2017","Fleet Services","Fleet Management","R3200"
"Wolverhampton City Council","http://opendatacommunities.org/id/metropolitan-district-council/wolverhampton","705946","Northgate Vehicle Hire Limited","SL04652534IN","326.76","Hire of Vehicles","190386698","26/10/2017","Fleet Services","Fleet Management","R3200"
"Wolverhampton City Council","http://opendatacommunities.org/id/metropolitan-district-council/wolverhampton","705946","Northgate Vehicle Hire Limited","SL04652552IN","214.20","Hire of Vehicles","190386716","26/10/2017","Fleet Services","Fleet Management","R3200"
"Wolverhampton City Council","http://opendatacommunities.org/id/metropolitan-district-council/wolverhampton","705946","Northgate Vehicle Hire Limited","SL04652528IN","326.76","Hire of Vehicles","190386692","26/10/2017","Fleet Services","Fleet Management","R3200"
"Wolverhampton City Council","http://opendatacommunities.org/id/metropolitan-district-council/wolverhampton","705946","Northgate Vehicle Hire Limited","NTGSL0056994","306.46","Hire of Vehicles","190383771","18/10/2017","Fleet Services","Fleet Management","R3200"
"Wolverhampton City Council","http://opendatacommunities.org/id/metropolitan-district-council/wolverhampton","705946","Northgate Vehicle Hire Limited","NTGSL0056973","318.56","Hire of Vehicles","190383763","18/10/2017","Fleet Services","Fleet Management","R3200"
"Wolverhampton City Council","http://opendatacommunities.org/id/metropolitan-district-council/wolverhampton","705946","Northgate Vehicle Hire Limited","NTGSL0056972","306.46","Hire of Vehicles","190383762","18/10/2017","Fleet Services","Fleet Management","R3200"
"Wolverhampton City Council","http://opendatacommunities.org/id/metropolitan-district-council/wolverhampton","705946","Northgate Vehicle Hire Limited","SL04652539IN","292.53","Hire of Vehicles","190386703","26/10/2017","Fleet Services","Fleet Management","R3200"
"Wolverhampton City Council","http://opendatacommunities.org/id/metropolitan-district-council/wolverhampton","705946","Northgate Vehicle Hire Limited","SL04652540IN","214.20","Hire of Vehicles","190386704","26/10/2017","Fleet Services","Fleet Management","R3200"
"Wolverhampton City Council","http://opendatacommunities.org/id/metropolitan-district-council/wolverhampton","705946","Northgate Vehicle Hire Limited","SL04658128IN","9.71","Hire of Vehicles","190386723","26/10/2017","Fleet Services","Fleet Management","R3200"
"Wolverhampton City Council","http://opendatacommunities.org/id/metropolitan-district-council/wolverhampton","705946","Northgate Vehicle Hire Limited","SL04664474IN","115.84","Hire of Vehicles","190386724","26/10/2017","Fleet Services","Fleet Management","R3200"
"Wolverhampton City Council","http://opendatacommunities.org/id/metropolitan-district-council/wolverhampton","705946","Northgate Vehicle Hire Limited","SL04656367IN","77.68","Hire of Vehicles","190386722","26/10/2017","Fleet Services","Fleet Management","R3200"
"Wolverhampton City Council","http://opendatacommunities.org/id/metropolitan-district-council/wolverhampton","705946","Northgate Vehicle Hire Limited","SL04652515IN","304.08","Hire of Vehicles","190386679","26/10/2017","Fleet Services","Fleet Management","R3200"
"Wolverhampton City Council","http://opendatacommunities.org/id/metropolitan-district-council/wolverhampton","705946","Northgate Vehicle Hire Limited","SL04606102IN","190.52","Hire of Vehicles","190386678","26/10/2017","Fleet Services","Fleet Management","R3200"
"Wolverhampton City Council","http://opendatacommunities.org/id/metropolitan-district-council/wolverhampton","705946","Northgate Vehicle Hire Limited","SL04616697IN","30.60","Hire of Vehicles","190379552","04/10/2017","Fleet Services","Fleet Management","R3200"
"Wolverhampton City Council","http://opendatacommunities.org/id/metropolitan-district-council/wolverhampton","705946","Northgate Vehicle Hire Limited","SL04652538IN","214.20","Hire of Vehicles","190386702","26/10/2017","Fleet Services","Fleet Management","R3200"
"Wolverhampton City Council","http://opendatacommunities.org/id/metropolitan-district-council/wolverhampton","705946","Northgate Vehicle Hire Limited","SL04652520IN","303.03","Hire of Vehicles","190386684","26/10/2017","Fleet Services","Fleet Management","R3200"
"Wolverhampton City Council","http://opendatacommunities.org/id/metropolitan-district-council/wolverhampton","705946","Northgate Vehicle Hire Limited","SL04652548IN","292.53","Hire of Vehicles","190386712","26/10/2017","Fleet Services","Fleet Management","R3200"
"Wolverhampton City Council","http://opendatacommunities.org/id/metropolitan-district-council/wolverhampton","705946","Northgate Vehicle Hire Limited","SL04652558IN","246.16","Hire of Vehicles","190386721","26/10/2017","Fleet Services","Fleet Management","R3200"
"Wolverhampton City Council","http://opendatacommunities.org/id/metropolitan-district-council/wolverhampton","705946","Northgate Vehicle Hire Limited","SL04652556IN","181.86","Hire of Vehicles","190386719","26/10/2017","Fleet Services","Fleet Management","R3200"
"Wolverhampton City Council","http://opendatacommunities.org/id/metropolitan-district-council/wolverhampton","705946","Northgate Vehicle Hire Limited","CNW00039408","-229.75","Hire of Vehicles","190386660","26/10/2017","Fleet Services","Fleet Management","R3200"
"Wolverhampton City Council","http://opendatacommunities.org/id/metropolitan-district-council/wolverhampton","705946","Northgate Vehicle Hire Limited","SL04621822IN","122.40","Hire of Vehicles","190383772","18/10/2017","Fleet Services","Fleet Management","R3200"
"Wolverhampton City Council","http://opendatacommunities.org/id/metropolitan-district-council/wolverhampton","705946","Northgate Vehicle Hire Limited","NTGSL0056980","306.46","Hire of Vehicles","190383770","18/10/2017","Fleet Services","Fleet Management","R3200"
"Wolverhampton City Council","http://opendatacommunities.org/id/metropolitan-district-council/wolverhampton","705946","Northgate Vehicle Hire Limited","NTGSL0056971","306.46","Hire of Vehicles","190383761","18/10/2017","Fleet Services","Fleet Management","R3200"
"Wolverhampton City Council","http://opendatacommunities.org/id/metropolitan-district-council/wolverhampton","705946","Northgate Vehicle Hire Limited","SL04652523IN","292.53","Hire of Vehicles","190386687","26/10/2017","Fleet Services","Fleet Management","R3200"
"Wolverhampton City Council","http://opendatacommunities.org/id/metropolitan-district-council/wolverhampton","705946","Northgate Vehicle Hire Limited","SL04652532IN","292.53","Hire of Vehicles","190386696","26/10/2017","Fleet Services","Fleet Management","R3200"
"Wolverhampton City Council","http://opendatacommunities.org/id/metropolitan-district-council/wolverhampton","705946","Northgate Vehicle Hire Limited","SL04652531IN","326.76","Hire of Vehicles","190386695","26/10/2017","Fleet Services","Fleet Management","R3200"
"Wolverhampton City Council","http://opendatacommunities.org/id/metropolitan-district-council/wolverhampton","705946","Northgate Vehicle Hire Limited","SL04652549IN","326.76","Hire of Vehicles","190386713","26/10/2017","Fleet Services","Fleet Management","R3200"
"Wolverhampton City Council","http://opendatacommunities.org/id/metropolitan-district-council/wolverhampton","705946","Northgate Vehicle Hire Limited","SL04652527IN","326.76","Hire of Vehicles","190386691","26/10/2017","Fleet Services","Fleet Management","R3200"
"Wolverhampton City Council","http://opendatacommunities.org/id/metropolitan-district-council/wolverhampton","705946","Northgate Vehicle Hire Limited","SL04652545IN","214.20","Hire of Vehicles","190386709","26/10/2017","Fleet Services","Fleet Management","R3200"
"Wolverhampton City Council","http://opendatacommunities.org/id/metropolitan-district-council/wolverhampton","705946","Northgate Vehicle Hire Limited","SL04652536IN","214.20","Hire of Vehicles","190386700","26/10/2017","Fleet Services","Fleet Management","R3200"
"Wolverhampton City Council","http://opendatacommunities.org/id/metropolitan-district-council/wolverhampton","705946","Northgate Vehicle Hire Limited","SL04652547IN","292.53","Hire of Vehicles","190386711","26/10/2017","Fleet Services","Fleet Management","R3200"
"Wolverhampton City Council","http://opendatacommunities.org/id/metropolitan-district-council/wolverhampton","705946","Northgate Vehicle Hire Limited","SL04652550IN","304.08","Hire of Vehicles","190386714","26/10/2017","Fleet Services","Fleet Management","R3200"
"Wolverhampton City Council","http://opendatacommunities.org/id/metropolitan-district-council/wolverhampton","705946","Northgate Vehicle Hire Limited","SL04652535IN","428.40","Hire of Vehicles","190386699","26/10/2017","Fleet Services","Fleet Management","R3200"
"Wolverhampton City Council","http://opendatacommunities.org/id/metropolitan-district-council/wolverhampton","705946","Northgate Vehicle Hire Limited","SL04652555IN","181.86","Hire of Vehicles","190386718","26/10/2017","Fleet Services","Fleet Management","R3200"
"Wolverhampton City Council","http://opendatacommunities.org/id/metropolitan-district-council/wolverhampton","705946","Northgate Vehicle Hire Limited","SL04652557IN","303.03","Hire of Vehicles","190386720","26/10/2017","Fleet Services","Fleet Management","R3200"
"Wolverhampton City Council","http://opendatacommunities.org/id/metropolitan-district-council/wolverhampton","705946","Northgate Vehicle Hire Limited","SL04622850IN","30.60","Hire of Vehicles","190383773","18/10/2017","Fleet Services","Fleet Management","R3200"
"Wolverhampton City Council","http://opendatacommunities.org/id/metropolitan-district-council/wolverhampton","705946","Northgate Vehicle Hire Limited","NTGSL0056978","342.32","Hire of Vehicles","190383768","18/10/2017","Fleet Services","Fleet Management","R3200"
"Wolverhampton City Council","http://opendatacommunities.org/id/metropolitan-district-council/wolverhampton","705946","Northgate Vehicle Hire Limited","NTGSL0056975","317.46","Hire of Vehicles","190383765","18/10/2017","Fleet Services","Fleet Management","R3200"
"Wolverhampton City Council","http://opendatacommunities.org/id/metropolitan-district-council/wolverhampton","705946","Northgate Vehicle Hire Limited","SL04622850IN","10.53","Hire of Vehicles","190383773","18/10/2017","Fleet Services","Fleet Management","R3200"
"Wolverhampton City Council","http://opendatacommunities.org/id/metropolitan-district-council/wolverhampton","705946","Northgate Vehicle Hire Limited","NTGSL0056979","306.46","Hire of Vehicles","190383769","18/10/2017","Fleet Services","Fleet Management","R3200"
"Wolverhampton City Council","http://opendatacommunities.org/id/metropolitan-district-council/wolverhampton","705946","Northgate Vehicle Hire Limited","SL04652526IN","292.53","Hire of Vehicles","190386690","26/10/2017","Fleet Services","Fleet Management","R3200"
"Wolverhampton City Council","http://opendatacommunities.org/id/metropolitan-district-council/wolverhampton","705946","Northgate Vehicle Hire Limited","SL04652530IN","326.76","Hire of Vehicles","190386694","26/10/2017","Fleet Services","Fleet Management","R3200"
"Wolverhampton City Council","http://opendatacommunities.org/id/metropolitan-district-council/wolverhampton","705946","Northgate Vehicle Hire Limited","SL04652521IN","292.53","Hire of Vehicles","190386685","26/10/2017","Fleet Services","Fleet Management","R3200"
"Wolverhampton City Council","http://opendatacommunities.org/id/metropolitan-district-council/wolverhampton","705946","Northgate Vehicle Hire Limited","SL04652546IN","326.76","Hire of Vehicles","190386710","26/10/2017","Fleet Services","Fleet Management","R3200"
"Wolverhampton City Council","http://opendatacommunities.org/id/metropolitan-district-council/wolverhampton","705946","Northgate Vehicle Hire Limited","SL04652517IN","326.76","Hire of Vehicles","190386681","26/10/2017","Fleet Services","Fleet Management","R3200"
"Wolverhampton City Council","http://opendatacommunities.org/id/metropolitan-district-council/wolverhampton","705946","Northgate Vehicle Hire Limited","SL04652544IN","214.20","Hire of Vehicles","190386708","26/10/2017","Fleet Services","Fleet Management","R3200"
"Wolverhampton City Council","http://opendatacommunities.org/id/metropolitan-district-council/wolverhampton","705954","Nottingham Rehab Supplies/Nrs Limited","97453103","12.21","Equipment - Purchase","130191051","26/10/2017","Catering","Education Catering - General Overheads","R4000"
"Wolverhampton City Council","http://opendatacommunities.org/id/metropolitan-district-council/wolverhampton","705954","Nottingham Rehab Supplies/Nrs Limited","97453103","60.12","Equipment - Purchase","130191051","26/10/2017","Catering","Education Catering - General Overheads","R4000"
"Wolverhampton City Council","http://opendatacommunities.org/id/metropolitan-district-council/wolverhampton","705954","Nottingham Rehab Supplies/Nrs Limited","97453103","54.00","Equipment - Purchase","130191051","26/10/2017","Catering","Education Catering - General Overheads","R4000"
"Wolverhampton City Council","http://opendatacommunities.org/id/metropolitan-district-council/wolverhampton","705954","Nottingham Rehab Supplies/Nrs Limited","1800099531","2,254.48","Equipment - R & M","130188660","11/10/2017","Independent Living Service","Independent Living Service","R4003"
"Wolverhampton City Council","http://opendatacommunities.org/id/metropolitan-district-council/wolverhampton","705954","Nottingham Rehab Supplies/Nrs Limited","97452348","950.00","Equipment - Purchase","130191050","26/10/2017","Independent Living Service","Independent Living Service","R4000"
"Wolverhampton City Council","http://opendatacommunities.org/id/metropolitan-district-council/wolverhampton","705954","Nottingham Rehab Supplies/Nrs Limited","97452348","556.00","Equipment - Purchase","130191050","26/10/2017","Independent Living Service","Independent Living Service","R4000"
"Wolverhampton City Council","http://opendatacommunities.org/id/metropolitan-district-council/wolverhampton","705954","Nottingham Rehab Supplies/Nrs Limited","1800099532","1,070.72","Equipment - R & M","130188661","11/10/2017","Independent Living Service","Independent Living Service","R4003"
"Wolverhampton City Council","http://opendatacommunities.org/id/metropolitan-district-council/wolverhampton","705954","Nottingham Rehab Supplies/Nrs Limited","97448868","849.00","Equipment - Purchase","130189554","11/10/2017","Independent Living Service","Independent Living Service","R4000"
"Wolverhampton City Council","http://opendatacommunities.org/id/metropolitan-district-council/wolverhampton","705954","Nottingham Rehab Supplies/Nrs Limited","1800100013","2,191.98","Equipment - R & M","130190172","26/10/2017","Independent Living Service","Independent Living Service","R4003"
"Wolverhampton City Council","http://opendatacommunities.org/id/metropolitan-district-council/wolverhampton","705963","Now Medical","WOL0917","25.00","Medical Fees","190381999","11/10/2017","Housing Revenue Account","Duty Office","R1400"
"Wolverhampton City Council","http://opendatacommunities.org/id/metropolitan-district-council/wolverhampton","705964","NPOWER","NP0260-79034839190","38.10","Electricity","190382002","11/10/2017","Housing Revenue Account","Hostels / Outreach","R2100"
"Wolverhampton City Council","http://opendatacommunities.org/id/metropolitan-district-council/wolverhampton","705964","NPOWER","NP0265-79412550060","38.10","Electricity","190382007","11/10/2017","Housing Revenue Account","Hostels / Outreach","R2100"
"Wolverhampton City Council","http://opendatacommunities.org/id/metropolitan-district-council/wolverhampton","705964","NPOWER","NP0257-79728787730","100.00","Electricity","190381841","11/10/2017","Housing Revenue Account","Hostels / Outreach","R2100"
"Wolverhampton City Council","http://opendatacommunities.org/id/metropolitan-district-council/wolverhampton","705964","NPOWER","NP0261-79658059440","38.10","Electricity","190382003","11/10/2017","Housing Revenue Account","Hostels / Outreach","R2100"
"Wolverhampton City Council","http://opendatacommunities.org/id/metropolitan-district-council/wolverhampton","705964","NPOWER","NP0267-79261433080","38.10","Electricity","190382009","11/10/2017","Housing Revenue Account","Hostels / Outreach","R2100"
"Wolverhampton City Council","http://opendatacommunities.org/id/metropolitan-district-council/wolverhampton","705964","NPOWER","NP0264-79008077050","38.09","Electricity","190382006","11/10/2017","Housing Revenue Account","Hostels / Outreach","R2100"
"Wolverhampton City Council","http://opendatacommunities.org/id/metropolitan-district-council/wolverhampton","705964","NPOWER","NP0262-79037534440","38.10","Electricity","190382004","11/10/2017","Housing Revenue Account","Hostels / Outreach","R2100"
"Wolverhampton City Council","http://opendatacommunities.org/id/metropolitan-district-council/wolverhampton","705964","NPOWER","NP0258-79943478860","38.10","Electricity","190382000","11/10/2017","Housing Revenue Account","Hostels / Outreach","R2100"
"Wolverhampton City Council","http://opendatacommunities.org/id/metropolitan-district-council/wolverhampton","705964","NPOWER","NP0259-79549928880","38.10","Electricity","190382001","11/10/2017","Housing Revenue Account","Hostels / Outreach","R2100"
"Wolverhampton City Council","http://opendatacommunities.org/id/metropolitan-district-council/wolverhampton","705964","NPOWER","NP0263-79180763890","38.10","Electricity","190382005","11/10/2017","Housing Revenue Account","Hostels / Outreach","R2100"
"Wolverhampton City Council","http://opendatacommunities.org/id/metropolitan-district-council/wolverhampton","705964","NPOWER","NP0266-79317409980","38.09","Electricity","190382008","11/10/2017","Housing Revenue Account","Hostels / Outreach","R2100"
"Wolverhampton City Council","http://opendatacommunities.org/id/metropolitan-district-council/wolverhampton","705966","NPOWER Limited-Mba Accounts Receivable","LGU5DRHW","349.59","Electricity","190382755","13/10/2017","Corporate Asset Management","Central Utilities to Recharge","R2100"
"Wolverhampton City Council","http://opendatacommunities.org/id/metropolitan-district-council/wolverhampton","705966","NPOWER Limited-Mba Accounts Receivable","LGU5CT24","404.84","Electricity","190382756","13/10/2017","Corporate Asset Management","Central Utilities to Recharge","R2100"
"Wolverhampton City Council","http://opendatacommunities.org/id/metropolitan-district-council/wolverhampton","705995","Oakley�S Limited","168247","21.56","Equipment - Purchase","190379853","04/10/2017","Fleet Services","Fleet Management","R4000"
"Wolverhampton City Council","http://opendatacommunities.org/id/metropolitan-district-council/wolverhampton","705995","Oakley�S Limited","168705","17.10","Equipment - Purchase","190381764","11/10/2017","Fleet Services","Fleet Management","R4000"
"Wolverhampton City Council","http://opendatacommunities.org/id/metropolitan-district-council/wolverhampton","705995","Oakley�S Limited","168707","92.96","Equipment - Purchase","190386967","26/10/2017","Fleet Services","Fleet Management","R4000"
"Wolverhampton City Council","http://opendatacommunities.org/id/metropolitan-district-council/wolverhampton","705995","Oakley�S Limited","168910","129.07","Equipment - Purchase","190386971","26/10/2017","Fleet Services","Fleet Management","R4000"
"Wolverhampton City Council","http://opendatacommunities.org/id/metropolitan-district-council/wolverhampton","705995","Oakley�S Limited","168389","224.01","Equipment - Purchase","190381763","11/10/2017","Fleet Services","Fleet Management","R4000"
"Wolverhampton City Council","http://opendatacommunities.org/id/metropolitan-district-council/wolverhampton","705995","Oakley�S Limited","168389","235.26","Equipment - Purchase","190381763","11/10/2017","Fleet Services","Fleet Management","R4000"
"Wolverhampton City Council","http://opendatacommunities.org/id/metropolitan-district-council/wolverhampton","705995","Oakley�S Limited","168389","180.59","Equipment - Purchase","190381763","11/10/2017","Fleet Services","Fleet Management","R4000"
"Wolverhampton City Council","http://opendatacommunities.org/id/metropolitan-district-council/wolverhampton","705995","Oakley�S Limited","167112","97.00","Equipment - Purchase","130192764","26/10/2017","Environmental Maintenance","Ground Maintenance East","R4000"
"Wolverhampton City Council","http://opendatacommunities.org/id/metropolitan-district-council/wolverhampton","705995","Oakley�S Limited","168139.1","-75.26","Equipment - Purchase","190379852","04/10/2017","Fleet Services","Fleet Management","R4000"
"Wolverhampton City Council","http://opendatacommunities.org/id/metropolitan-district-council/wolverhampton","705995","Oakley�S Limited","168294","216.36","Equipment - Purchase","190379854","04/10/2017","Fleet Services","Fleet Management","R4000"
"Wolverhampton City Council","http://opendatacommunities.org/id/metropolitan-district-council/wolverhampton","705995","Oakley�S Limited","168264","89.10","Equipment - Purchase","190380663","06/10/2017","Fleet Services","Fleet Management","R4000"
"Wolverhampton City Council","http://opendatacommunities.org/id/metropolitan-district-council/wolverhampton","705995","Oakley�S Limited","168264","4.58","Equipment - Purchase","190380663","06/10/2017","Fleet Services","Fleet Management","R4000"
"Wolverhampton City Council","http://opendatacommunities.org/id/metropolitan-district-council/wolverhampton","705995","Oakley�S Limited","168706","17.10","Equipment - Purchase","190381765","11/10/2017","Fleet Services","Fleet Management","R4000"
"Wolverhampton City Council","http://opendatacommunities.org/id/metropolitan-district-council/wolverhampton","705995","Oakley�S Limited","168685","245.75","Equipment - Purchase","190386966","26/10/2017","Fleet Services","Fleet Management","R4000"
"Wolverhampton City Council","http://opendatacommunities.org/id/metropolitan-district-council/wolverhampton","705995","Oakley�S Limited","168718","25.48","Equipment - Purchase","190386968","26/10/2017","Fleet Services","Fleet Management","R4000"
"Wolverhampton City Council","http://opendatacommunities.org/id/metropolitan-district-council/wolverhampton","705995","Oakley�S Limited","168349","6.66","Equipment - Purchase","190381762","11/10/2017","Fleet Services","Fleet Management","R4000"
"Wolverhampton City Council","http://opendatacommunities.org/id/metropolitan-district-council/wolverhampton","705995","Oakley�S Limited","168349","93.33","Equipment - Purchase","190381762","11/10/2017","Fleet Services","Fleet Management","R4000"
"Wolverhampton City Council","http://opendatacommunities.org/id/metropolitan-district-council/wolverhampton","705995","Oakley�S Limited","168349","216.36","Equipment - Purchase","190381762","11/10/2017","Fleet Services","Fleet Management","R4000"
"Wolverhampton City Council","http://opendatacommunities.org/id/metropolitan-district-council/wolverhampton","705995","Oakley�S Limited","168781","-344.61","Equipment - Purchase","190386969","26/10/2017","Fleet Services","Fleet Management","R4000"
"Wolverhampton City Council","http://opendatacommunities.org/id/metropolitan-district-council/wolverhampton","705995","Oakley�S Limited","168787","125.02","Equipment - Purchase","190386970","26/10/2017","Fleet Services","Fleet Management","R4000"
"Wolverhampton City Council","http://opendatacommunities.org/id/metropolitan-district-council/wolverhampton","705995","Oakley�S Limited","168787","125.02","Equipment - Purchase","190386970","26/10/2017","Fleet Services","Fleet Management","R4000"
"Wolverhampton City Council","http://opendatacommunities.org/id/metropolitan-district-council/wolverhampton","705995","Oakley�S Limited","168712","125.02","Equipment - Purchase","190382986","13/10/2017","Fleet Services","Fleet Management","R4000"
"Wolverhampton City Council","http://opendatacommunities.org/id/metropolitan-district-council/wolverhampton","705995","Oakley�S Limited","168712","125.02","Equipment - Purchase","190382986","13/10/2017","Fleet Services","Fleet Management","R4000"
"Wolverhampton City Council","http://opendatacommunities.org/id/metropolitan-district-council/wolverhampton","705995","Oakley�S Limited","168139","-75.26","Equipment - Purchase","190379851","04/10/2017","Fleet Services","Fleet Management","R4000"
"Wolverhampton City Council","http://opendatacommunities.org/id/metropolitan-district-council/wolverhampton","705995","Oakley�S Limited","168293","7.54","Equipment - Purchase","190380664","06/10/2017","Fleet Services","Fleet Management","R4000"
"Wolverhampton City Council","http://opendatacommunities.org/id/metropolitan-district-council/wolverhampton","705995","Oakley�S Limited","168293","7.54","Equipment - Purchase","190380664","06/10/2017","Fleet Services","Fleet Management","R4000"
"Wolverhampton City Council","http://opendatacommunities.org/id/metropolitan-district-council/wolverhampton","705995","Oakley�S Limited","168609","0.47","Equipment - Purchase","190384443","20/10/2017","Fleet Services","Fleet Management","R4000"
"Wolverhampton City Council","http://opendatacommunities.org/id/metropolitan-district-council/wolverhampton","705995","Oakley�S Limited","168609","0.47","Equipment - Purchase","190384443","20/10/2017","Fleet Services","Fleet Management","R4000"
"Wolverhampton City Council","http://opendatacommunities.org/id/metropolitan-district-council/wolverhampton","705995","Oakley�S Limited","168609","10.10","Equipment - Purchase","190384443","20/10/2017","Fleet Services","Fleet Management","R4000"
"Wolverhampton City Council","http://opendatacommunities.org/id/metropolitan-district-council/wolverhampton","706003","Ocean Swimming Pools Limited","21233","386.50","Materials","130191470","13/10/2017","Leisure Services","Bert Williams Leisure Centre","R4007"
"Wolverhampton City Council","http://opendatacommunities.org/id/metropolitan-district-council/wolverhampton","706003","Ocean Swimming Pools Limited","21233","22.50","Comms - Postage","130191470","13/10/2017","Leisure Services","Bert Williams Leisure Centre","R4503"
"Wolverhampton City Council","http://opendatacommunities.org/id/metropolitan-district-council/wolverhampton","706003","Ocean Swimming Pools Limited","21251","350.00","Materials","130189682","18/10/2017","Leisure Services","Bert Williams Leisure Centre","R4007"
"Wolverhampton City Council","http://opendatacommunities.org/id/metropolitan-district-council/wolverhampton","706003","Ocean Swimming Pools Limited","21251","22.50","Comms - Postage","130189682","18/10/2017","Leisure Services","Bert Williams Leisure Centre","R4503"
"Wolverhampton City Council","http://opendatacommunities.org/id/metropolitan-district-council/wolverhampton","706006","OCN (Open College Network) West Mids","27835","140.00","Exam Expenses (Non-Employee)","130190043","04/10/2017","Adult Education","Foundation Studies Delivery Area","R4630"
"Wolverhampton City Council","http://opendatacommunities.org/id/metropolitan-district-council/wolverhampton","706045","One Voice","WAS 1718/01","23,683.00","TPP - Social Care Support Services","130191197","13/10/2017","Head of Commissioning","Wolvo Independant Advocacy Service","R5501"
"Wolverhampton City Council","http://opendatacommunities.org/id/metropolitan-district-council/wolverhampton","706051","OOSHA Limited","507224","119.98","Comms - Telephone Rental","130191198","27/10/2017","Visitor Economy","Box Office Administration","R4504"
"Wolverhampton City Council","http://opendatacommunities.org/id/metropolitan-district-council/wolverhampton","706068","EE Limited","01263583006","4,022.22","Comms - Mobile Telephones","130188340","11/10/2017","ICTS","Strategic ICTS (ICT Service Budget)","R4507"
"Wolverhampton City Council","http://opendatacommunities.org/id/metropolitan-district-council/wolverhampton","706068","EE Limited","01264923538","2,613.71","Comms - Mobile Telephones","130191863","26/10/2017","ICTS","Strategic ICTS (ICT Service Budget)","R4507"
"Wolverhampton City Council","http://opendatacommunities.org/id/metropolitan-district-council/wolverhampton","706068","EE Limited","01264923538","-2,613.71","Comms - Mobile Telephones","130191863","26/10/2017","ICTS","Strategic ICTS (ICT Service Budget)","R4507"
"Wolverhampton City Council","http://opendatacommunities.org/id/metropolitan-district-council/wolverhampton","706068","EE Limited","01264923538","2,612.71","Comms - Mobile Telephones","130191863","26/10/2017","ICTS","Strategic ICTS (ICT Service Budget)","R4507"
"Wolverhampton City Council","http://opendatacommunities.org/id/metropolitan-district-council/wolverhampton","706068","EE Limited","01264923538","10.00","Comms - Mobile Telephones","130191863","26/10/2017","ICTS","Strategic ICTS (ICT Service Budget)","R4507"
"Wolverhampton City Council","http://opendatacommunities.org/id/metropolitan-district-council/wolverhampton","706097","Out Of The Ark Music Limited","SIN022963","39.95","Books","130192201","18/10/2017","Schools","Rakegate Primary School","R4309"
"Wolverhampton City Council","http://opendatacommunities.org/id/metropolitan-district-council/wolverhampton","706097","Out Of The Ark Music Limited","SIN022963","2.75","Equipment - Purchase","130192201","18/10/2017","Schools","Rakegate Primary School","R4000"
"Wolverhampton City Council","http://opendatacommunities.org/id/metropolitan-district-council/wolverhampton","706097","Out Of The Ark Music Limited","SIN022963","13.25","Equipment - Purchase","130192201","18/10/2017","Schools","Rakegate Primary School","R4000"
"Wolverhampton City Council","http://opendatacommunities.org/id/metropolitan-district-council/wolverhampton","706108","Oxford Products","783112","82.08","TPP - Maintenance Contractor - General","130190858","26/10/2017","Transportation","Cycling Schemes - Bikeability","R5720"
"Wolverhampton City Council","http://opendatacommunities.org/id/metropolitan-district-council/wolverhampton","706108","Oxford Products","779283","596.74","TPP - Maintenance Contractor - General","130188663","13/10/2017","Transportation","Cycling Schemes - Bikeability","R5720"
"Wolverhampton City Council","http://opendatacommunities.org/id/metropolitan-district-council/wolverhampton","706108","Oxford Products","782772","15.91","TPP - Maintenance Contractor - General","130190497","26/10/2017","Transportation","Cycling Schemes - Bikeability","R5720"
"Wolverhampton City Council","http://opendatacommunities.org/id/metropolitan-district-council/wolverhampton","706111","Oxford University Press","162536462","1,415.35","Equipment - Purchase","130192369","18/10/2017","Schools","Rakegate Primary School","R4000"
"Wolverhampton City Council","http://opendatacommunities.org/id/metropolitan-district-council/wolverhampton","706111","Oxford University Press","162536462","174.02","Comms - Postage","130192369","18/10/2017","Schools","Rakegate Primary School","R4503"
"Wolverhampton City Council","http://opendatacommunities.org/id/metropolitan-district-council/wolverhampton","706148","P&D York Travel Llp","16487","320.00","Education trips, Holidays, Outings & Activities","130190044","18/10/2017","Early Intervention","EIP Locality 8 � Children�s Village","R4970"
"Wolverhampton City Council","http://opendatacommunities.org/id/metropolitan-district-council/wolverhampton","706154","P.F.Cusack (Tool Supplies) Limited","0000837103","144.00","Materials","130190045","20/10/2017","Highways Maintenance","Patching","R4007"
"Wolverhampton City Council","http://opendatacommunities.org/id/metropolitan-district-council/wolverhampton","706154","P.F.Cusack (Tool Supplies) Limited","0000832654","74.60","Materials","130187856","04/10/2017","Highways Maintenance","Patching","R4007"
"Wolverhampton City Council","http://opendatacommunities.org/id/metropolitan-district-council/wolverhampton","706154","P.F.Cusack (Tool Supplies) Limited","0000833237","1,780.83","Materials","130188524","11/10/2017","Street Lighting","Christmas Illuminations","R4007"
"Wolverhampton City Council","http://opendatacommunities.org/id/metropolitan-district-council/wolverhampton","706154","P.F.Cusack (Tool Supplies) Limited","0000833176","4.70","Materials","130188523","04/10/2017","Highways Maintenance","Patching","R4007"
"Wolverhampton City Council","http://opendatacommunities.org/id/metropolitan-district-council/wolverhampton","706198","Parkeon Limited","UK101237","629.16","Equipment - R & M","130190174","26/10/2017","Parking Services","Car Parks Operational Staff","R4003"
"Wolverhampton City Council","http://opendatacommunities.org/id/metropolitan-district-council/wolverhampton","706198","Parkeon Limited","UK100724","20,694.00","Equipment - R & M","130188664","11/10/2017","Parking Services","Short Stay - Civic Centre","R4003"
"Wolverhampton City Council","http://opendatacommunities.org/id/metropolitan-district-council/wolverhampton","706198","Parkeon Limited","UK101235","10.00","Equipment - R & M","130190173","26/10/2017","Parking Services","St Peter�s Car Park","R4003"
"Wolverhampton City Council","http://opendatacommunities.org/id/metropolitan-district-council/wolverhampton","706200","Parkfield Medical Practice","M2017Q215SHCIFIQ","250.00","TPP - Public Health Contracts","190387822","27/10/2017","Contracts","Sexual Health","R5060"
"Wolverhampton City Council","http://opendatacommunities.org/id/metropolitan-district-council/wolverhampton","706200","Parkfield Medical Practice","M2017Q215HL1IPRQ","22.00","TPP - Public Health Contracts","190387829","27/10/2017","Contracts","Healthy Lifestyles","R5060"
"Wolverhampton City Council","http://opendatacommunities.org/id/metropolitan-district-council/wolverhampton","706200","Parkfield Medical Practice","M2017Q215HL1IHCQ","8.50","TPP - Public Health Contracts","190387828","27/10/2017","Contracts","Healthy Lifestyles","R5060"
"Wolverhampton City Council","http://opendatacommunities.org/id/metropolitan-district-council/wolverhampton","706200","Parkfield Medical Practice","M2017Q215HL2COMQ","550.00","TPP - Public Health Contracts","190387831","27/10/2017","Contracts","Healthy Lifestyles","R5060"
"Wolverhampton City Council","http://opendatacommunities.org/id/metropolitan-district-council/wolverhampton","706200","Parkfield Medical Practice","M2017Q215SHIUDFQ","1,100.00","TPP - Public Health Contracts","190387825","27/10/2017","Contracts","Sexual Health","R5060"
"Wolverhampton City Council","http://opendatacommunities.org/id/metropolitan-district-council/wolverhampton","706200","Parkfield Medical Practice","M2017Q215SHCIFBQ","320.00","TPP - Public Health Contracts","190387824","27/10/2017","Contracts","Sexual Health","R5060"
"Wolverhampton City Council","http://opendatacommunities.org/id/metropolitan-district-council/wolverhampton","706200","Parkfield Medical Practice","FOS0371","75.86","Services - Professional Fees","190384724","20/10/2017","Looked After Children","Fostering Team & Allowances","R4400"
"Wolverhampton City Council","http://opendatacommunities.org/id/metropolitan-district-council/wolverhampton","706200","Parkfield Medical Practice","M2017Q2.15SHIUDRQ","100.00","TPP - Public Health Contracts","190387827","27/10/2017","Contracts","Sexual Health","R5060"
"Wolverhampton City Council","http://opendatacommunities.org/id/metropolitan-district-council/wolverhampton","706200","Parkfield Medical Practice","M2017Q215SHCIFRQ","315.00","TPP - Public Health Contracts","190387823","27/10/2017","Contracts","Sexual Health","R5060"
"Wolverhampton City Council","http://opendatacommunities.org/id/metropolitan-district-council/wolverhampton","706200","Parkfield Medical Practice","M2017Q215HL1ANRQ","100.00","TPP - Public Health Contracts","190387830","27/10/2017","Contracts","Healthy Lifestyles","R5060"
"Wolverhampton City Council","http://opendatacommunities.org/id/metropolitan-district-council/wolverhampton","706200","Parkfield Medical Practice","M2017Q215SHIUFRQ","50.00","TPP - Public Health Contracts","190387826","27/10/2017","Contracts","Sexual Health","R5060"
"Wolverhampton City Council","http://opendatacommunities.org/id/metropolitan-district-council/wolverhampton","706214","Passenger Lift Services Limited","110722","94.42","Equipment - Purchase","190381753","11/10/2017","Fleet Services","Fleet Management","R4000"
"Wolverhampton City Council","http://opendatacommunities.org/id/metropolitan-district-council/wolverhampton","706214","Passenger Lift Services Limited","110722","1.34","Equipment - Purchase","190381753","11/10/2017","Fleet Services","Fleet Management","R4000"
"Wolverhampton City Council","http://opendatacommunities.org/id/metropolitan-district-council/wolverhampton","706214","Passenger Lift Services Limited","110722","36.30","Equipment - Purchase","190381753","11/10/2017","Fleet Services","Fleet Management","R4000"
"Wolverhampton City Council","http://opendatacommunities.org/id/metropolitan-district-council/wolverhampton","706214","Passenger Lift Services Limited","110147.1","28.03","Equipment - Purchase","190386946","26/10/2017","Fleet Services","Fleet Management","R4000"
"Wolverhampton City Council","http://opendatacommunities.org/id/metropolitan-district-council/wolverhampton","706214","Passenger Lift Services Limited","110721","458.70","Equipment - Purchase","190386947","26/10/2017","Fleet Services","Fleet Management","R4000"
"Wolverhampton City Council","http://opendatacommunities.org/id/metropolitan-district-council/wolverhampton","706214","Passenger Lift Services Limited","110592","810.70","Equipment - Purchase","190379834","04/10/2017","Fleet Services","Fleet Management","R4000"
"Wolverhampton City Council","http://opendatacommunities.org/id/metropolitan-district-council/wolverhampton","706214","Passenger Lift Services Limited","110147","367.25","Equipment - Purchase","190386945","26/10/2017","Fleet Services","Fleet Management","R4000"
"Wolverhampton City Council","http://opendatacommunities.org/id/metropolitan-district-council/wolverhampton","706223","Patterson Medical Limited","5144413631","339.95","Equipment - Purchase","130188985","06/10/2017","Independent Living Service","Independent Living Service","R4000"
"Wolverhampton City Council","http://opendatacommunities.org/id/metropolitan-district-council/wolverhampton","706259","Penderels Trust","13646420171003","220.00","Direct payments - Long Term support","190379919","04/10/2017","Older People Care Purchasing","OP Care Purchasing (Spot Placements)","R6302"
"Wolverhampton City Council","http://opendatacommunities.org/id/metropolitan-district-council/wolverhampton","706259","Penderels Trust","13645420171003","220.00","Direct payments - Long Term support","190379915","04/10/2017","Older People Care Purchasing","OP Care Purchasing (Spot Placements)","R6302"
"Wolverhampton City Council","http://opendatacommunities.org/id/metropolitan-district-council/wolverhampton","706259","Penderels Trust","13647620171003","180.00","Direct payments - Long Term support","190379922","04/10/2017","Older People Care Purchasing","OP Care Purchasing (Spot Placements)","R6302"
"Wolverhampton City Council","http://opendatacommunities.org/id/metropolitan-district-council/wolverhampton","706259","Penderels Trust","13646720171003","220.00","Direct payments - Long Term support","190379920","04/10/2017","Older People Care Purchasing","OP Care Purchasing (Spot Placements)","R6302"
"Wolverhampton City Council","http://opendatacommunities.org/id/metropolitan-district-council/wolverhampton","706259","Penderels Trust","13644820171003","220.00","Direct payments - Long Term support","190379912","04/10/2017","Older People Care Purchasing","OP Care Purchasing (Spot Placements)","R6302"
"Wolverhampton City Council","http://opendatacommunities.org/id/metropolitan-district-council/wolverhampton","706259","Penderels Trust","13645520171003","220.00","Direct payments - Long Term support","190379916","04/10/2017","Older People Care Purchasing","OP Care Purchasing (Spot Placements)","R6302"
"Wolverhampton City Council","http://opendatacommunities.org/id/metropolitan-district-council/wolverhampton","706259","Penderels Trust","0000143915","2,200.00","Direct payments - Long Term support","130190688","11/10/2017","Head of Commissioning","Commissioning Disabilities","R6302"
"Wolverhampton City Council","http://opendatacommunities.org/id/metropolitan-district-council/wolverhampton","706259","Penderels Trust","0000136480","1,050.00","Direct payments - Long Term support","130182975","04/10/2017","Head of Commissioning","Commissioning Disabilities","R6302"
"Wolverhampton City Council","http://opendatacommunities.org/id/metropolitan-district-council/wolverhampton","706259","Penderels Trust","13645120171003","220.00","Direct payments - Long Term support","190379914","04/10/2017","Older People Care Purchasing","OP Care Purchasing (Spot Placements)","R6302"
"Wolverhampton City Council","http://opendatacommunities.org/id/metropolitan-district-council/wolverhampton","706259","Penderels Trust","13646220171003","220.00","Direct payments - Long Term support","190379918","04/10/2017","Older People Care Purchasing","OP Care Purchasing (Spot Placements)","R6302"
"Wolverhampton City Council","http://opendatacommunities.org/id/metropolitan-district-council/wolverhampton","706259","Penderels Trust","13647420171003","220.00","Direct payments - Long Term support","190379921","04/10/2017","Older People Care Purchasing","OP Care Purchasing (Spot Placements)","R6302"
"Wolverhampton City Council","http://opendatacommunities.org/id/metropolitan-district-council/wolverhampton","706259","Penderels Trust","13645020171003","220.00","Direct payments - Long Term support","190379913","04/10/2017","Older People Care Purchasing","OP Care Purchasing (Spot Placements)","R6302"
"Wolverhampton City Council","http://opendatacommunities.org/id/metropolitan-district-council/wolverhampton","706259","Penderels Trust","13646020171003","220.00","Direct payments - Long Term support","190379917","04/10/2017","Older People Care Purchasing","OP Care Purchasing (Spot Placements)","R6302"
"Wolverhampton City Council","http://opendatacommunities.org/id/metropolitan-district-council/wolverhampton","706259","Penderels Trust","0000146708","930.00","Direct payments - Long Term support","130190689","06/10/2017","Head of Commissioning","Commissioning Disabilities","R6302"
"Wolverhampton City Council","http://opendatacommunities.org/id/metropolitan-district-council/wolverhampton","706300","Penn News Limited","PNNEWS 039","55.20","Books","130189126","04/10/2017","Strategic Organisation Development","Penn Library","R4309"
"Wolverhampton City Council","http://opendatacommunities.org/id/metropolitan-district-council/wolverhampton","706300","Penn News Limited","PNNEWS 040","49.40","Books","130189127","04/10/2017","Strategic Organisation Development","Penn Library","R4309"
"Wolverhampton City Council","http://opendatacommunities.org/id/metropolitan-district-council/wolverhampton","706301","Penna PLC","555333","21,402.00","Services - Consultants","130189555","18/10/2017","Service Director Public Health & Wellbeing","Service Director Public Health & Wellbeing","R4404"
"Wolverhampton City Council","http://opendatacommunities.org/id/metropolitan-district-council/wolverhampton","706301","Penna PLC","556257","409.68","Staff Advertising Costs","130191771","26/10/2017","Service Director Public Health & Wellbeing","Service Director Public Health & Wellbeing","R1700"
"Wolverhampton City Council","http://opendatacommunities.org/id/metropolitan-district-council/wolverhampton","706302","Pennwood Electrical Services Limited","005641","766.00","R&M - Departmental response (Internal)","130190690","11/10/2017","Visitor Economy","The Little Civic","R2002"
"Wolverhampton City Council","http://opendatacommunities.org/id/metropolitan-district-council/wolverhampton","706302","Pennwood Electrical Services Limited","005658","1,265.00","R&M - Departmental response (Internal)","130190859","11/10/2017","Visitor Economy","The Little Civic","R2002"
"Wolverhampton City Council","http://opendatacommunities.org/id/metropolitan-district-council/wolverhampton","706315","Permanent Futures Limited","220226","4,025.00","Agency Staff","130189400","11/10/2017","Service Director Children & Young People","Children & Young People Support Costs","R1100"
"Wolverhampton City Council","http://opendatacommunities.org/id/metropolitan-district-council/wolverhampton","706323","Pestcare Environmental Limited","21556","378.00","Pest Control","130190046","18/10/2017","Older People Provider Services","Blakenhall Resource Centre","R2702"
"Wolverhampton City Council","http://opendatacommunities.org/id/metropolitan-district-council/wolverhampton","706328","Peter Littleford Limited","11 (VB)","277.50","Direct Work With Children","130189254","13/10/2017","Looked After Children","Adoption Support Fund","R6310"
"Wolverhampton City Council","http://opendatacommunities.org/id/metropolitan-district-council/wolverhampton","706328","Peter Littleford Limited","48(KL)","529.75","Services - Professional Fees","130190332","26/10/2017","Looked After Children","Adoption and Residence Team & Allowances","R4400"
"Wolverhampton City Council","http://opendatacommunities.org/id/metropolitan-district-council/wolverhampton","706328","Peter Littleford Limited","42 ( TR )","371.50","Direct Work With Children","130190498","26/10/2017","Looked After Children","Adoption Support Fund","R6310"
"Wolverhampton City Council","http://opendatacommunities.org/id/metropolitan-district-council/wolverhampton","706332","Peters Limited","1655525","23.15","Books","130190118","04/10/2017","Strategic Organisation Development","Global Budgets","R4309"
"Wolverhampton City Council","http://opendatacommunities.org/id/metropolitan-district-council/wolverhampton","706332","Peters Limited","1664825","271.31","Books","130192596","27/10/2017","Strategic Organisation Development","Global Budgets","R4309"
"Wolverhampton City Council","http://opendatacommunities.org/id/metropolitan-district-council/wolverhampton","706332","Peters Limited","1661504","23.15","Books","130189684","04/10/2017","Strategic Organisation Development","Global Budgets","R4309"
"Wolverhampton City Council","http://opendatacommunities.org/id/metropolitan-district-council/wolverhampton","706332","Peters Limited","1660600","-4.63","Books","130190499","04/10/2017","Strategic Organisation Development","Global Budgets","R4309"
"Wolverhampton City Council","http://opendatacommunities.org/id/metropolitan-district-council/wolverhampton","706332","Peters Limited","1660602","10.35","Books","130192768","27/10/2017","Strategic Organisation Development","Global Budgets","R4309"
"Wolverhampton City Council","http://opendatacommunities.org/id/metropolitan-district-council/wolverhampton","706357","Phonak UK Limited","2591862822","90.00","Services - Assistive technology","130189129","11/10/2017","Standards and Vulnerable Pupils","SEN Sensory Inclusion","R4407"
"Wolverhampton City Council","http://opendatacommunities.org/id/metropolitan-district-council/wolverhampton","706364","Phs Group PLC","64835420","135.94","Contract Cleaning","130167047","04/10/2017","Facilities Management","Civic Centre","R2700"
"Wolverhampton City Council","http://opendatacommunities.org/id/metropolitan-district-council/wolverhampton","706364","Phs Group PLC","65245974","628.11","Cleaning Supplies and Materials","130189889","18/10/2017","Adult Education","Service Wide","R2705"
"Wolverhampton City Council","http://opendatacommunities.org/id/metropolitan-district-council/wolverhampton","706364","Phs Group PLC","65262566","202.80","Contract Cleaning","130190500","26/10/2017","Learning Disability Provider","Support Plus","R2700"
"Wolverhampton City Council","http://opendatacommunities.org/id/metropolitan-district-council/wolverhampton","706364","Phs Group PLC","65277401","7.00","Contract Cleaning","130192938","27/10/2017","School Planning & Resources","Towers Outdoor Education Centre","R2700"
"Wolverhampton City Council","http://opendatacommunities.org/id/metropolitan-district-council/wolverhampton","706364","Phs Group PLC","65115067","3,978.75","TPP - Public Health Contracts","130185246","11/10/2017","Contracts","Alcohol and Drug","R5060"
"Wolverhampton City Council","http://opendatacommunities.org/id/metropolitan-district-council/wolverhampton","706414","Playsafety Limited","31819","860.00","Training Expenses","130190501","26/10/2017","Audit Services","Health & Safety","R1650"
"Wolverhampton City Council","http://opendatacommunities.org/id/metropolitan-district-council/wolverhampton","706414","Playsafety Limited","31819","-860.00","Training Expenses","130190501","26/10/2017","Audit Services","Health & Safety","R1650"
"Wolverhampton City Council","http://opendatacommunities.org/id/metropolitan-district-council/wolverhampton","706414","Playsafety Limited","31819","800.00","Training Expenses","130190501","26/10/2017","Audit Services","Health & Safety","R1650"
"Wolverhampton City Council","http://opendatacommunities.org/id/metropolitan-district-council/wolverhampton","706414","Playsafety Limited","31819","60.00","Training Expenses","130190501","26/10/2017","Audit Services","Health & Safety","R1650"
"Wolverhampton City Council","http://opendatacommunities.org/id/metropolitan-district-council/wolverhampton","706417","Plexus Law","65JK/EV6388/00070024","2,863.68","Insurance - General","130188527","04/10/2017","Audit Services","Legal Liability","R4962"
"Wolverhampton City Council","http://opendatacommunities.org/id/metropolitan-district-council/wolverhampton","706417","Plexus Law","04354614","1,575.00","Insurance - General","130188986","11/10/2017","Audit Services","Legal Liability","R4962"
"Wolverhampton City Council","http://opendatacommunities.org/id/metropolitan-district-council/wolverhampton","706417","Plexus Law","04354614","525.00","Insurance - General","130188986","11/10/2017","Audit Services","Legal Liability","R4962"
"Wolverhampton City Council","http://opendatacommunities.org/id/metropolitan-district-council/wolverhampton","706417","Plexus Law","04354614","-1,575.00","Insurance - General","130188986","11/10/2017","Audit Services","Legal Liability","R4962"
"Wolverhampton City Council","http://opendatacommunities.org/id/metropolitan-district-council/wolverhampton","706417","Plexus Law","04354614","-525.00","Insurance - General","130188986","11/10/2017","Audit Services","Legal Liability","R4962"
"Wolverhampton City Council","http://opendatacommunities.org/id/metropolitan-district-council/wolverhampton","706417","Plexus Law","04354614","50.00","Insurance - General","130188986","11/10/2017","Audit Services","Legal Liability","R4962"
"Wolverhampton City Council","http://opendatacommunities.org/id/metropolitan-district-council/wolverhampton","706417","Plexus Law","04354614","2,050.00","Insurance - General","130188986","11/10/2017","Audit Services","Legal Liability","R4962"
"Wolverhampton City Council","http://opendatacommunities.org/id/metropolitan-district-council/wolverhampton","706424","Pma International Limited","PMA 2710","260.00","Stationery","130191054","26/10/2017","Headstart","Headstart Phase 3","R4308"
"Wolverhampton City Council","http://opendatacommunities.org/id/metropolitan-district-council/wolverhampton","706439","Portakabin Limited","900790432","128.72","Room Hire","130190176","26/10/2017","Facilities Management","Hickman Avenue Depot","R2201"
"Wolverhampton City Council","http://opendatacommunities.org/id/metropolitan-district-council/wolverhampton","706439","Portakabin Limited","900790435","86.67","Room Hire","130190179","26/10/2017","Facilities Management","Culwell Street Depot","R2201"
"Wolverhampton City Council","http://opendatacommunities.org/id/metropolitan-district-council/wolverhampton","706439","Portakabin Limited","900791434","462.36","Equipment - Hire","130191056","27/10/2017","City Development","Westside","R4001"
"Wolverhampton City Council","http://opendatacommunities.org/id/metropolitan-district-council/wolverhampton","706439","Portakabin Limited","900790434","386.75","Room Hire","130190178","26/10/2017","Facilities Management","Hickman Avenue Depot","R2201"
"Wolverhampton City Council","http://opendatacommunities.org/id/metropolitan-district-council/wolverhampton","706439","Portakabin Limited","900790436","272.97","Equipment - Hire","130190180","26/10/2017","Fleet Services","Passenger Transport - General","R4001"
"Wolverhampton City Council","http://opendatacommunities.org/id/metropolitan-district-council/wolverhampton","706439","Portakabin Limited","900790431","125.67","Room Hire","130190175","26/10/2017","Facilities Management","Hickman Avenue Depot","R2201"
"Wolverhampton City Council","http://opendatacommunities.org/id/metropolitan-district-council/wolverhampton","706439","Portakabin Limited","900790437","108.33","Room Hire","130190181","26/10/2017","Markets","Wholesale Market Facilities Management","R2201"
"Wolverhampton City Council","http://opendatacommunities.org/id/metropolitan-district-council/wolverhampton","706439","Portakabin Limited","900790433","167.72","Room Hire","130190177","26/10/2017","Facilities Management","Hickman Avenue Depot","R2201"
"Wolverhampton City Council","http://opendatacommunities.org/id/metropolitan-district-council/wolverhampton","706443","Portobello Community Association","86","165.00","Room Hire","130190182","11/10/2017","Early Intervention","EIP Locality 1 - Eastfields","R2201"
"Wolverhampton City Council","http://opendatacommunities.org/id/metropolitan-district-council/wolverhampton","706443","Portobello Community Association","86","-165.00","Room Hire","130190182","11/10/2017","Early Intervention","EIP Locality 1 - Eastfields","R2201"
"Wolverhampton City Council","http://opendatacommunities.org/id/metropolitan-district-council/wolverhampton","706443","Portobello Community Association","86","165.00","Room Hire","130190182","11/10/2017","Early Intervention","EIP Locality 1 - Eastfields","R2201"
"Wolverhampton City Council","http://opendatacommunities.org/id/metropolitan-district-council/wolverhampton","706453","Post Office Counters Limited","VEHICLE TAXATION  2017 BN55UTY (additional)","240.00","Road Fund Licence","190379638","04/10/2017","Fleet Services","Fleet Management","R3004"
"Wolverhampton City Council","http://opendatacommunities.org/id/metropolitan-district-council/wolverhampton","706453","Post Office Counters Limited","VEHICLE TAXATION OCTOBER 2017","3,715.00","Road Fund Licence","190383962","18/10/2017","Fleet Services","Fleet Management","R3004"
"Wolverhampton City Council","http://opendatacommunities.org/id/metropolitan-district-council/wolverhampton","706454","Postage By Phone","72630729","700.00","Comms - Postage","130189685","18/10/2017","Adult Education","Service Wide","R4503"
"Wolverhampton City Council","http://opendatacommunities.org/id/metropolitan-district-council/wolverhampton","706469","Kennet Water Ltd (Pollet Pool Group)","SI1705082_PUK","1,906.25","Materials","130188137","04/10/2017","Environmental Maintenance","Parks - Ranger Service","R4007"
"Wolverhampton City Council","http://opendatacommunities.org/id/metropolitan-district-council/wolverhampton","706486","Premier Paper Group Limited","8903687","1,057.50","Stationery","130188988","13/10/2017","ICTS","Document Centre - General","R4308"
"Wolverhampton City Council","http://opendatacommunities.org/id/metropolitan-district-council/wolverhampton","706486","Premier Paper Group Limited","8903423","692.00","Stationery","130188987","13/10/2017","ICTS","Document Centre - General","R4308"
"Wolverhampton City Council","http://opendatacommunities.org/id/metropolitan-district-council/wolverhampton","706486","Premier Paper Group Limited","8919544","692.00","Stationery","130190048","26/10/2017","ICTS","Document Centre - General","R4308"
"Wolverhampton City Council","http://opendatacommunities.org/id/metropolitan-district-council/wolverhampton","706486","Premier Paper Group Limited","8907435","168.90","Stationery","130189130","18/10/2017","ICTS","Document Centre - General","R4308"
"Wolverhampton City Council","http://opendatacommunities.org/id/metropolitan-district-council/wolverhampton","706486","Premier Paper Group Limited","8892198","692.00","Stationery","130188138","06/10/2017","ICTS","Document Centre - General","R4308"
"Wolverhampton City Council","http://opendatacommunities.org/id/metropolitan-district-council/wolverhampton","706486","Premier Paper Group Limited","8907935","692.00","Stationery","130189255","18/10/2017","ICTS","Document Centre - General","R4308"
"Wolverhampton City Council","http://opendatacommunities.org/id/metropolitan-district-council/wolverhampton","706486","Premier Paper Group Limited","8919633","467.26","Stationery","130190049","26/10/2017","Adult Education","Service Wide","R4308"
"Wolverhampton City Council","http://opendatacommunities.org/id/metropolitan-district-council/wolverhampton","706486","Premier Paper Group Limited","8896344","692.00","Stationery","130188528","11/10/2017","ICTS","Document Centre - General","R4308"
"Wolverhampton City Council","http://opendatacommunities.org/id/metropolitan-district-council/wolverhampton","706486","Premier Paper Group Limited","8915001","692.00","Stationery","130189686","20/10/2017","ICTS","Document Centre - General","R4308"
"Wolverhampton City Council","http://opendatacommunities.org/id/metropolitan-district-council/wolverhampton","706488","Premier Service Limited T/A Premier Grp.","32152","195.00","Equipment - R & M","190379866","04/10/2017","Fleet Services","Fleet Management","R4003"
"Wolverhampton City Council","http://opendatacommunities.org/id/metropolitan-district-council/wolverhampton","706488","Premier Service Limited T/A Premier Grp.","32152","0.51","Equipment - R & M","190379866","04/10/2017","Fleet Services","Fleet Management","R4003"
"Wolverhampton City Council","http://opendatacommunities.org/id/metropolitan-district-council/wolverhampton","706539","Prism UK Medical Limited - Westholme Ltd","5218751","1,171.29","Equipment - Purchase","130188530","06/10/2017","Independent Living Service","Independent Living Service","R4000"
"Wolverhampton City Council","http://opendatacommunities.org/id/metropolitan-district-council/wolverhampton","706539","Prism UK Medical Limited - Westholme Ltd","5222921","665.48","Equipment - Purchase","130190502","26/10/2017","Independent Living Service","Independent Living Service","R4000"
"Wolverhampton City Council","http://opendatacommunities.org/id/metropolitan-district-council/wolverhampton","706539","Prism UK Medical Limited - Westholme Ltd","5218845","1,221.59","Equipment - Purchase","130188531","11/10/2017","Independent Living Service","Independent Living Service","R4000"
"Wolverhampton City Council","http://opendatacommunities.org/id/metropolitan-district-council/wolverhampton","706539","Prism UK Medical Limited - Westholme Ltd","5221018","144.20","Equipment - Purchase","130189687","18/10/2017","Independent Living Service","Independent Living Service","R4000"
"Wolverhampton City Council","http://opendatacommunities.org/id/metropolitan-district-council/wolverhampton","706539","Prism UK Medical Limited - Westholme Ltd","5221018","10.00","Equipment - Purchase","130189687","18/10/2017","Independent Living Service","Independent Living Service","R4000"
"Wolverhampton City Council","http://opendatacommunities.org/id/metropolitan-district-council/wolverhampton","706547","Procare Mobility Limited","4953","4,900.00","Equipment - Purchase","130189688","18/10/2017","Independent Living Service","Independent Living Service","R4000"
"Wolverhampton City Council","http://opendatacommunities.org/id/metropolitan-district-council/wolverhampton","706567","Prontaprint Limited","77272","100.00","Marketing \ Non-staff advertising","130190691","11/10/2017","Visitor Economy","Arts Publicity","R4317"
"Wolverhampton City Council","http://opendatacommunities.org/id/metropolitan-district-council/wolverhampton","706567","Prontaprint Limited","77509","360.00","Marketing \ Non-staff advertising","130192770","26/10/2017","Visitor Economy","Civic & Wulfrun Outhouse & Other Comercial Events","R4317"
"Wolverhampton City Council","http://opendatacommunities.org/id/metropolitan-district-council/wolverhampton","706567","Prontaprint Limited","77109","112.50","Marketing \ Non-staff advertising","130188345","26/10/2017","Visitor Economy","Arts Publicity","R4317"
"Wolverhampton City Council","http://opendatacommunities.org/id/metropolitan-district-council/wolverhampton","706567","Prontaprint Limited","77314","49.50","Marketing \ Non-staff advertising","130190693","11/10/2017","Visitor Economy","Civic & Wulfrun Outhouse & Other Comercial Events","R4317"
"Wolverhampton City Council","http://opendatacommunities.org/id/metropolitan-district-council/wolverhampton","706567","Prontaprint Limited","77325","145.00","Printing","130190694","06/10/2017","Headstart","Headstart Phase 3","R4300"
"Wolverhampton City Council","http://opendatacommunities.org/id/metropolitan-district-council/wolverhampton","706567","Prontaprint Limited","77311","685.00","Marketing \ Non-staff advertising","130190692","06/10/2017","Headstart","Headstart Phase 3","R4317"
"Wolverhampton City Council","http://opendatacommunities.org/id/metropolitan-district-council/wolverhampton","706567","Prontaprint Limited","77508","76.50","Marketing \ Non-staff advertising","130192769","27/10/2017","Visitor Economy","Civic & Wulfrun Outhouse & Other Comercial Events","R4317"
"Wolverhampton City Council","http://opendatacommunities.org/id/metropolitan-district-council/wolverhampton","706567","Prontaprint Limited","77397","270.00","Marketing \ Non-staff advertising","130190695","11/10/2017","Visitor Economy","Civic & Wulfrun Outhouse & Other Comercial Events","R4317"
"Wolverhampton City Council","http://opendatacommunities.org/id/metropolitan-district-council/wolverhampton","706567","Prontaprint Limited","77511","45.00","Marketing \ Non-staff advertising","130192771","26/10/2017","Visitor Economy","Arts Publicity","R4317"
"Wolverhampton City Council","http://opendatacommunities.org/id/metropolitan-district-council/wolverhampton","706567","Prontaprint Limited","77398","90.00","Marketing \ Non-staff advertising","130190696","11/10/2017","Visitor Economy","Civic & Wulfrun Outhouse & Other Comercial Events","R4317"
"Wolverhampton City Council","http://opendatacommunities.org/id/metropolitan-district-council/wolverhampton","706567","Prontaprint Limited","77227","198.00","Marketing \ Non-staff advertising","130188535","26/10/2017","Visitor Economy","Arts Publicity","R4317"
"Wolverhampton City Council","http://opendatacommunities.org/id/metropolitan-district-council/wolverhampton","706576","Prospects Services","060892","3,306.00","TPP - Other contractors","130190050","04/10/2017","Skills","IMPACT","R5099"
"Wolverhampton City Council","http://opendatacommunities.org/id/metropolitan-district-council/wolverhampton","706576","Prospects Services","061033","5,152.42","Computing - Licences","130191057","11/10/2017","Skills","Connexions Contract","R4535"
"Wolverhampton City Council","http://opendatacommunities.org/id/metropolitan-district-council/wolverhampton","706602","Pugh Computers Limited","INV1709-000219","1,062.00","Computing - Purchase of Software","130188835","13/10/2017","School Planning & Resources","Technical Support","R4531"
"Wolverhampton City Council","http://opendatacommunities.org/id/metropolitan-district-council/wolverhampton","706602","Pugh Computers Limited","INV1709-000251","6,087.80","Computing - Purchase of Hardware","130189131","18/10/2017","Adult Education","ICT Services","R4530"
"Wolverhampton City Council","http://opendatacommunities.org/id/metropolitan-district-council/wolverhampton","706602","Pugh Computers Limited","INV1709-000251","49.00","Computing - Purchase of Hardware","130189131","18/10/2017","Adult Education","ICT Services","R4530"
"Wolverhampton City Council","http://opendatacommunities.org/id/metropolitan-district-council/wolverhampton","706602","Pugh Computers Limited","INV1709-000251","221.60","Computing - Purchase of Hardware","130189131","18/10/2017","Adult Education","ICT Services","R4530"
"Wolverhampton City Council","http://opendatacommunities.org/id/metropolitan-district-council/wolverhampton","706602","Pugh Computers Limited","INV1709-000251","1,907.20","Computing - Purchase of Hardware","130189131","18/10/2017","Adult Education","ICT Services","R4530"
"Wolverhampton City Council","http://opendatacommunities.org/id/metropolitan-district-council/wolverhampton","706602","Pugh Computers Limited","INV1709-000251","1,178.80","Computing - Purchase of Hardware","130189131","18/10/2017","Adult Education","ICT Services","R4530"
"Wolverhampton City Council","http://opendatacommunities.org/id/metropolitan-district-council/wolverhampton","706607","Purchase Power Pitney Bowes","BE970316","248.65","Comms - Postage","130190697","18/10/2017","Youth Offending","Youth Offending Team","R4503"
"Wolverhampton City Council","http://opendatacommunities.org/id/metropolitan-district-council/wolverhampton","706623","Q-Matic UK Limited","1032136","8,817.84","Computing - Purchase of Hardware","130191358","13/10/2017","Corporate Asset Management","Future Space Decant Area","R4530"
"Wolverhampton City Council","http://opendatacommunities.org/id/metropolitan-district-council/wolverhampton","706624","Q-Systems (UK) Limited","4604","180.00","Equipment - R & M","130191202","11/10/2017","Visitor Economy","Catering Overhead Account","R4003"
"Wolverhampton City Council","http://opendatacommunities.org/id/metropolitan-district-council/wolverhampton","706634","Quantaqua Limited","Wolv GT 699","186.20","Contract Cleaning","130190699","18/10/2017","Catering","Education Catering - General Overheads","R2700"
"Wolverhampton City Council","http://opendatacommunities.org/id/metropolitan-district-council/wolverhampton","706634","Quantaqua Limited","Wolv 1415","444.34","R&M - Departmental planned (external)","130191779","20/10/2017","Facilities Management","Caretakers Community Centre","R2001"
"Wolverhampton City Council","http://opendatacommunities.org/id/metropolitan-district-council/wolverhampton","706634","Quantaqua Limited","Wolv 1414","539.98","Contract Cleaning","130190698","18/10/2017","Catering","Education Catering - General Overheads","R2700"
"Wolverhampton City Council","http://opendatacommunities.org/id/metropolitan-district-council/wolverhampton","706643","Quest 88 Limited","85922","117.00","Equipment - R & M","130189403","18/10/2017","Independent Living Service","Independent Living Service","R4003"
"Wolverhampton City Council","http://opendatacommunities.org/id/metropolitan-district-council/wolverhampton","706643","Quest 88 Limited","85922","147.00","Equipment - R & M","130189403","18/10/2017","Independent Living Service","Independent Living Service","R4003"
"Wolverhampton City Council","http://opendatacommunities.org/id/metropolitan-district-council/wolverhampton","706643","Quest 88 Limited","85922","40.00","Equipment - R & M","130189403","18/10/2017","Independent Living Service","Independent Living Service","R4003"
"Wolverhampton City Council","http://opendatacommunities.org/id/metropolitan-district-council/wolverhampton","706643","Quest 88 Limited","85922","11.50","Equipment - R & M","130189403","18/10/2017","Independent Living Service","Independent Living Service","R4003"
"Wolverhampton City Council","http://opendatacommunities.org/id/metropolitan-district-council/wolverhampton","706649","R A Port & Associates","1936 - 17","121.20","Services - Professional Fees","130189689","04/10/2017","Child Protection","Head of Service - CINCP","R4400"
"Wolverhampton City Council","http://opendatacommunities.org/id/metropolitan-district-council/wolverhampton","706649","R A Port & Associates","1945 - 17","101.17","Services - Professional Fees","130192598","26/10/2017","Child Protection","Head of Service - CINCP","R4400"
"Wolverhampton City Council","http://opendatacommunities.org/id/metropolitan-district-council/wolverhampton","706666","R Prince","00034","360.00","TPP - Maintenance Contractor - General","190379643","04/10/2017","Transportation","Cycling Schemes - Bikeability","R5720"
"Wolverhampton City Council","http://opendatacommunities.org/id/metropolitan-district-council/wolverhampton","706668","R S Recovery Limited","00-100378","278.75","Services - Professional Fees","190379830","04/10/2017","Fleet Services","Fleet Management","R4400"
"Wolverhampton City Council","http://opendatacommunities.org/id/metropolitan-district-council/wolverhampton","706668","R S Recovery Limited","00-100721","143.75","Services - Professional Fees","190379831","04/10/2017","Fleet Services","Fleet Management","R4400"
"Wolverhampton City Council","http://opendatacommunities.org/id/metropolitan-district-council/wolverhampton","706677","R.D.Jukes & Co Limited","11537","6,376.27","Construction and Conversion","130190183","11/10/2017","-","Corporate Asset Management","C1100"
"Wolverhampton City Council","http://opendatacommunities.org/id/metropolitan-district-council/wolverhampton","706678","R.N. Diesel","3159","24.00","Equipment - Purchase","190380667","13/10/2017","Fleet Services","Fleet Management","R4000"
"Wolverhampton City Council","http://opendatacommunities.org/id/metropolitan-district-council/wolverhampton","706678","R.N. Diesel","3252","80.00","Equipment - Purchase","190380668","13/10/2017","Fleet Services","Fleet Management","R4000"
"Wolverhampton City Council","http://opendatacommunities.org/id/metropolitan-district-council/wolverhampton","706683","R82 UK Limited","223861","6,788.80","Equipment - Purchase","130189690","11/10/2017","Independent Living Service","Independent Living Service","R4000"
"Wolverhampton City Council","http://opendatacommunities.org/id/metropolitan-district-council/wolverhampton","706683","R82 UK Limited","223861","79.20","Equipment - R & M","130189690","11/10/2017","Independent Living Service","Independent Living Service","R4003"
"Wolverhampton City Council","http://opendatacommunities.org/id/metropolitan-district-council/wolverhampton","706692","Rad Building Limited","16/0366/DFG","9,866.91","Grants paid out","190387721","27/10/2017","-","Disabled Facilities Grants","C5000"
"Wolverhampton City Council","http://opendatacommunities.org/id/metropolitan-district-council/wolverhampton","706692","Rad Building Limited","16/0041/DFGb","9,700.00","Grants paid out","190382966","13/10/2017","-","Disabled Facilities Grants","C5000"
"Wolverhampton City Council","http://opendatacommunities.org/id/metropolitan-district-council/wolverhampton","706696","Radiotek Limited","13646","240.00","Equipment - Hire","130192943","26/10/2017","Visitor Economy","Diwali","R4001"
"Wolverhampton City Council","http://opendatacommunities.org/id/metropolitan-district-council/wolverhampton","706697","Radis Community Care","2409201720171009","194.15","TPP - Home Care","190381525","11/10/2017","Older People Care Purchasing","OP Care Purchasing (Spot Placements)","R5420"
"Wolverhampton City Council","http://opendatacommunities.org/id/metropolitan-district-council/wolverhampton","706697","Radis Community Care","2409201720171009","102.37","TPP - Home Care","190381525","11/10/2017","Older People Care Purchasing","OP Care Purchasing (Spot Placements)","R5420"
"Wolverhampton City Council","http://opendatacommunities.org/id/metropolitan-district-council/wolverhampton","706697","Radis Community Care","2409201720171009","102.37","TPP - Home Care","190381525","11/10/2017","Older People Care Purchasing","OP Care Purchasing (Spot Placements)","R5420"
"Wolverhampton City Council","http://opendatacommunities.org/id/metropolitan-district-council/wolverhampton","706697","Radis Community Care","2409201720171009","49.42","TPP - Home Care","190381525","11/10/2017","Older People Care Purchasing","OP Care Purchasing (Spot Placements)","R5420"
"Wolverhampton City Council","http://opendatacommunities.org/id/metropolitan-district-council/wolverhampton","706697","Radis Community Care","2409201720171009","123.55","TPP - Home Care","190381525","11/10/2017","Older People Care Purchasing","OP Care Purchasing (Spot Placements)","R5420"
"Wolverhampton City Council","http://opendatacommunities.org/id/metropolitan-district-council/wolverhampton","706697","Radis Community Care","2409201720171009","56.48","TPP - Home Care","190381525","11/10/2017","Older People Care Purchasing","OP Care Purchasing (Spot Placements)","R5420"
"Wolverhampton City Council","http://opendatacommunities.org/id/metropolitan-district-council/wolverhampton","706697","Radis Community Care","2409201720171009","42.36","TPP - Home Care","190381525","11/10/2017","Older People Care Purchasing","OP Care Purchasing (Spot Placements)","R5420"
"Wolverhampton City Council","http://opendatacommunities.org/id/metropolitan-district-council/wolverhampton","706697","Radis Community Care","2409201720171009","91.78","TPP - Home Care","190381525","11/10/2017","Older People Care Purchasing","OP Care Purchasing (Spot Placements)","R5420"
"Wolverhampton City Council","http://opendatacommunities.org/id/metropolitan-district-council/wolverhampton","706697","Radis Community Care","2409201720171009","31.77","TPP - Home Care","190381525","11/10/2017","Older People Care Purchasing","OP Care Purchasing (Spot Placements)","R5420"
"Wolverhampton City Council","http://opendatacommunities.org/id/metropolitan-district-council/wolverhampton","706697","Radis Community Care","2409201720171009","204.74","TPP - Home Care","190381525","11/10/2017","Older People Care Purchasing","OP Care Purchasing (Spot Placements)","R5420"
"Wolverhampton City Council","http://opendatacommunities.org/id/metropolitan-district-council/wolverhampton","706697","Radis Community Care","2409201720171009","77.66","TPP - Home Care","190381525","11/10/2017","Older People Care Purchasing","OP Care Purchasing (Spot Placements)","R5420"
"Wolverhampton City Council","http://opendatacommunities.org/id/metropolitan-district-council/wolverhampton","706697","Radis Community Care","2409201720171009","49.42","TPP - Home Care","190381525","11/10/2017","Older People Care Purchasing","OP Care Purchasing (Spot Placements)","R5420"
"Wolverhampton City Council","http://opendatacommunities.org/id/metropolitan-district-council/wolverhampton","706697","Radis Community Care","2409201720171009","112.96","TPP - Home Care","190381525","11/10/2017","Older People Care Purchasing","OP Care Purchasing (Spot Placements)","R5420"
"Wolverhampton City Council","http://opendatacommunities.org/id/metropolitan-district-council/wolverhampton","706697","Radis Community Care","2409201720171009","88.25","TPP - Home Care","190381525","11/10/2017","Older People Care Purchasing","OP Care Purchasing (Spot Placements)","R5420"
"Wolverhampton City Council","http://opendatacommunities.org/id/metropolitan-district-council/wolverhampton","706697","Radis Community Care","2409201720171009","98.84","TPP - Home Care","190381525","11/10/2017","Older People Care Purchasing","OP Care Purchasing (Spot Placements)","R5420"
"Wolverhampton City Council","http://opendatacommunities.org/id/metropolitan-district-council/wolverhampton","706697","Radis Community Care","2409201720171009","31.77","TPP - Home Care","190381525","11/10/2017","Older People Care Purchasing","OP Care Purchasing (Spot Placements)","R5420"
"Wolverhampton City Council","http://opendatacommunities.org/id/metropolitan-district-council/wolverhampton","706697","Radis Community Care","2409201720171009","56.48","TPP - Home Care","190381525","11/10/2017","Older People Care Purchasing","OP Care Purchasing (Spot Placements)","R5420"
"Wolverhampton City Council","http://opendatacommunities.org/id/metropolitan-district-council/wolverhampton","706697","Radis Community Care","2409201720171009","49.42","TPP - Home Care","190381525","11/10/2017","Older People Care Purchasing","OP Care Purchasing (Spot Placements)","R5420"
"Wolverhampton City Council","http://opendatacommunities.org/id/metropolitan-district-council/wolverhampton","706697","Radis Community Care","2409201720171009","98.84","TPP - Home Care","190381525","11/10/2017","Older People Care Purchasing","OP Care Purchasing (Spot Placements)","R5420"
"Wolverhampton City Council","http://opendatacommunities.org/id/metropolitan-district-council/wolverhampton","706697","Radis Community Care","2409201720171009","42.36","TPP - Home Care","190381525","11/10/2017","Older People Care Purchasing","OP Care Purchasing (Spot Placements)","R5420"
"Wolverhampton City Council","http://opendatacommunities.org/id/metropolitan-district-council/wolverhampton","706697","Radis Community Care","2409201720171009","52.95","TPP - Home Care","190381525","11/10/2017","Older People Care Purchasing","OP Care Purchasing (Spot Placements)","R5420"
"Wolverhampton City Council","http://opendatacommunities.org/id/metropolitan-district-council/wolverhampton","706697","Radis Community Care","2409201720171009","49.42","TPP - Home Care","190381525","11/10/2017","Older People Care Purchasing","OP Care Purchasing (Spot Placements)","R5420"
"Wolverhampton City Council","http://opendatacommunities.org/id/metropolitan-district-council/wolverhampton","706697","Radis Community Care","2409201720171009","134.14","TPP - Home Care","190381525","11/10/2017","Older People Care Purchasing","OP Care Purchasing (Spot Placements)","R5420"
"Wolverhampton City Council","http://opendatacommunities.org/id/metropolitan-district-council/wolverhampton","706697","Radis Community Care","2409201720171009","144.73","TPP - Home Care","190381525","11/10/2017","Older People Care Purchasing","OP Care Purchasing (Spot Placements)","R5420"
"Wolverhampton City Council","http://opendatacommunities.org/id/metropolitan-district-council/wolverhampton","706697","Radis Community Care","2409201720171009","151.79","TPP - Home Care","190381525","11/10/2017","Older People Care Purchasing","OP Care Purchasing (Spot Placements)","R5420"
"Wolverhampton City Council","http://opendatacommunities.org/id/metropolitan-district-council/wolverhampton","706697","Radis Community Care","2409201720171009","183.56","TPP - Home Care","190381525","11/10/2017","Older People Care Purchasing","OP Care Purchasing (Spot Placements)","R5420"
"Wolverhampton City Council","http://opendatacommunities.org/id/metropolitan-district-council/wolverhampton","706697","Radis Community Care","2409201720171009","225.92","TPP - Home Care","190381525","11/10/2017","Older People Care Purchasing","OP Care Purchasing (Spot Placements)","R5420"
"Wolverhampton City Council","http://opendatacommunities.org/id/metropolitan-district-council/wolverhampton","706697","Radis Community Care","2409201720171009","183.56","TPP - Home Care","190381525","11/10/2017","Older People Care Purchasing","OP Care Purchasing (Spot Placements)","R5420"
"Wolverhampton City Council","http://opendatacommunities.org/id/metropolitan-district-council/wolverhampton","706697","Radis Community Care","2409201720171009","162.38","TPP - Home Care","190381525","11/10/2017","Older People Care Purchasing","OP Care Purchasing (Spot Placements)","R5420"
"Wolverhampton City Council","http://opendatacommunities.org/id/metropolitan-district-council/wolverhampton","706697","Radis Community Care","2409201720171009","84.72","TPP - Home Care","190381525","11/10/2017","Older People Care Purchasing","OP Care Purchasing (Spot Placements)","R5420"
"Wolverhampton City Council","http://opendatacommunities.org/id/metropolitan-district-council/wolverhampton","706697","Radis Community Care","2409201720171009","102.37","TPP - Home Care","190381525","11/10/2017","Older People Care Purchasing","OP Care Purchasing (Spot Placements)","R5420"
"Wolverhampton City Council","http://opendatacommunities.org/id/metropolitan-district-council/wolverhampton","706697","Radis Community Care","2409201720171009","102.37","TPP - Home Care","190381525","11/10/2017","Older People Care Purchasing","OP Care Purchasing (Spot Placements)","R5420"
"Wolverhampton City Council","http://opendatacommunities.org/id/metropolitan-district-council/wolverhampton","706697","Radis Community Care","2409201720171009","98.84","TPP - Home Care","190381525","11/10/2017","Older People Care Purchasing","OP Care Purchasing (Spot Placements)","R5420"
"Wolverhampton City Council","http://opendatacommunities.org/id/metropolitan-district-council/wolverhampton","706697","Radis Community Care","2409201720171009","141.20","TPP - Home Care","190381525","11/10/2017","Older People Care Purchasing","OP Care Purchasing (Spot Placements)","R5420"
"Wolverhampton City Council","http://opendatacommunities.org/id/metropolitan-district-council/wolverhampton","706697","Radis Community Care","2409201720171009","172.97","TPP - Home Care","190381525","11/10/2017","Older People Care Purchasing","OP Care Purchasing (Spot Placements)","R5420"
"Wolverhampton City Council","http://opendatacommunities.org/id/metropolitan-district-council/wolverhampton","706697","Radis Community Care","2409201720171009","70.60","TPP - Home Care","190381525","11/10/2017","Older People Care Purchasing","OP Care Purchasing (Spot Placements)","R5420"
"Wolverhampton City Council","http://opendatacommunities.org/id/metropolitan-district-council/wolverhampton","706697","Radis Community Care","2409201720171009","77.66","TPP - Home Care","190381525","11/10/2017","Older People Care Purchasing","OP Care Purchasing (Spot Placements)","R5420"
"Wolverhampton City Council","http://opendatacommunities.org/id/metropolitan-district-council/wolverhampton","706697","Radis Community Care","2409201720171009","49.42","TPP - Home Care","190381525","11/10/2017","Older People Care Purchasing","OP Care Purchasing (Spot Placements)","R5420"
"Wolverhampton City Council","http://opendatacommunities.org/id/metropolitan-district-council/wolverhampton","706697","Radis Community Care","2409201720171009","225.92","TPP - Home Care","190381525","11/10/2017","Older People Care Purchasing","OP Care Purchasing (Spot Placements)","R5420"
"Wolverhampton City Council","http://opendatacommunities.org/id/metropolitan-district-council/wolverhampton","706697","Radis Community Care","2409201720171009","35.30","TPP - Home Care","190381525","11/10/2017","Older People Care Purchasing","OP Care Purchasing (Spot Placements)","R5420"
"Wolverhampton City Council","http://opendatacommunities.org/id/metropolitan-district-council/wolverhampton","706697","Radis Community Care","2409201720171009","109.43","TPP - Home Care","190381525","11/10/2017","Older People Care Purchasing","OP Care Purchasing (Spot Placements)","R5420"
"Wolverhampton City Council","http://opendatacommunities.org/id/metropolitan-district-council/wolverhampton","706697","Radis Community Care","2409201720171009","98.84","TPP - Home Care","190381525","11/10/2017","Older People Care Purchasing","OP Care Purchasing (Spot Placements)","R5420"
"Wolverhampton City Council","http://opendatacommunities.org/id/metropolitan-district-council/wolverhampton","706697","Radis Community Care","2409201720171009","49.42","TPP - Home Care","190381525","11/10/2017","Older People Care Purchasing","OP Care Purchasing (Spot Placements)","R5420"
"Wolverhampton City Council","http://opendatacommunities.org/id/metropolitan-district-council/wolverhampton","706697","Radis Community Care","2409201720171009","218.86","TPP - Home Care","190381525","11/10/2017","Older People Care Purchasing","OP Care Purchasing (Spot Placements)","R5420"
"Wolverhampton City Council","http://opendatacommunities.org/id/metropolitan-district-council/wolverhampton","706697","Radis Community Care","2409201720171009","211.80","TPP - Home Care","190381525","11/10/2017","Older People Care Purchasing","OP Care Purchasing (Spot Placements)","R5420"
"Wolverhampton City Council","http://opendatacommunities.org/id/metropolitan-district-council/wolverhampton","706697","Radis Community Care","2409201720171009","222.39","TPP - Home Care","190381525","11/10/2017","Older People Care Purchasing","OP Care Purchasing (Spot Placements)","R5420"
"Wolverhampton City Council","http://opendatacommunities.org/id/metropolitan-district-council/wolverhampton","706697","Radis Community Care","2409201720171009","144.73","TPP - Home Care","190381525","11/10/2017","Older People Care Purchasing","OP Care Purchasing (Spot Placements)","R5420"
"Wolverhampton City Council","http://opendatacommunities.org/id/metropolitan-district-council/wolverhampton","706697","Radis Community Care","2409201720171009","91.78","TPP - Home Care","190381525","11/10/2017","Older People Care Purchasing","OP Care Purchasing (Spot Placements)","R5420"
"Wolverhampton City Council","http://opendatacommunities.org/id/metropolitan-district-council/wolverhampton","706697","Radis Community Care","2409201720171009","42.36","TPP - Home Care","190381525","11/10/2017","Older People Care Purchasing","OP Care Purchasing (Spot Placements)","R5420"
"Wolverhampton City Council","http://opendatacommunities.org/id/metropolitan-district-council/wolverhampton","706697","Radis Community Care","2409201720171009","148.26","TPP - Home Care","190381525","11/10/2017","Older People Care Purchasing","OP Care Purchasing (Spot Placements)","R5420"
"Wolverhampton City Council","http://opendatacommunities.org/id/metropolitan-district-council/wolverhampton","706697","Radis Community Care","2409201720171009","151.79","TPP - Home Care","190381525","11/10/2017","Older People Care Purchasing","OP Care Purchasing (Spot Placements)","R5420"
"Wolverhampton City Council","http://opendatacommunities.org/id/metropolitan-district-council/wolverhampton","706697","Radis Community Care","2409201720171009","225.92","TPP - Home Care","190381525","11/10/2017","Older People Care Purchasing","OP Care Purchasing (Spot Placements)","R5420"
"Wolverhampton City Council","http://opendatacommunities.org/id/metropolitan-district-council/wolverhampton","706697","Radis Community Care","2409201720171009","74.13","TPP - Home Care","190381525","11/10/2017","Older People Care Purchasing","OP Care Purchasing (Spot Placements)","R5420"
"Wolverhampton City Council","http://opendatacommunities.org/id/metropolitan-district-council/wolverhampton","706697","Radis Community Care","2409201720171009","24.71","TPP - Home Care","190381525","11/10/2017","Older People Care Purchasing","OP Care Purchasing (Spot Placements)","R5420"
"Wolverhampton City Council","http://opendatacommunities.org/id/metropolitan-district-council/wolverhampton","706697","Radis Community Care","2409201720171009","194.15","TPP - Home Care","190381525","11/10/2017","Older People Care Purchasing","OP Care Purchasing (Spot Placements)","R5420"
"Wolverhampton City Council","http://opendatacommunities.org/id/metropolitan-district-council/wolverhampton","706697","Radis Community Care","2409201720171009","49.42","TPP - Home Care","190381525","11/10/2017","Older People Care Purchasing","OP Care Purchasing (Spot Placements)","R5420"
"Wolverhampton City Council","http://opendatacommunities.org/id/metropolitan-district-council/wolverhampton","706697","Radis Community Care","2409201720171009","98.84","TPP - Home Care","190381525","11/10/2017","Older People Care Purchasing","OP Care Purchasing (Spot Placements)","R5420"
"Wolverhampton City Council","http://opendatacommunities.org/id/metropolitan-district-council/wolverhampton","706697","Radis Community Care","2409201720171009","109.43","TPP - Home Care","190381525","11/10/2017","Older People Care Purchasing","OP Care Purchasing (Spot Placements)","R5420"
"Wolverhampton City Council","http://opendatacommunities.org/id/metropolitan-district-council/wolverhampton","706697","Radis Community Care","2409201720171009","264.75","TPP - Home Care","190381525","11/10/2017","Older People Care Purchasing","OP Care Purchasing (Spot Placements)","R5420"
"Wolverhampton City Council","http://opendatacommunities.org/id/metropolitan-district-council/wolverhampton","706697","Radis Community Care","2409201720171009","183.56","TPP - Home Care","190381525","11/10/2017","Older People Care Purchasing","OP Care Purchasing (Spot Placements)","R5420"
"Wolverhampton City Council","http://opendatacommunities.org/id/metropolitan-district-council/wolverhampton","706697","Radis Community Care","2409201720171009","91.78","TPP - Home Care","190381525","11/10/2017","Older People Care Purchasing","OP Care Purchasing (Spot Placements)","R5420"
"Wolverhampton City Council","http://opendatacommunities.org/id/metropolitan-district-council/wolverhampton","706697","Radis Community Care","2409201720171009","95.31","TPP - Home Care","190381525","11/10/2017","Older People Care Purchasing","OP Care Purchasing (Spot Placements)","R5420"
"Wolverhampton City Council","http://opendatacommunities.org/id/metropolitan-district-council/wolverhampton","706697","Radis Community Care","2409201720171009","70.60","TPP - Home Care","190381525","11/10/2017","Older People Care Purchasing","OP Care Purchasing (Spot Placements)","R5420"
"Wolverhampton City Council","http://opendatacommunities.org/id/metropolitan-district-council/wolverhampton","706697","Radis Community Care","2409201720171009","180.03","TPP - Home Care","190381525","11/10/2017","Older People Care Purchasing","OP Care Purchasing (Spot Placements)","R5420"
"Wolverhampton City Council","http://opendatacommunities.org/id/metropolitan-district-council/wolverhampton","706697","Radis Community Care","2409201720171009","194.15","TPP - Home Care","190381525","11/10/2017","Older People Care Purchasing","OP Care Purchasing (Spot Placements)","R5420"
"Wolverhampton City Council","http://opendatacommunities.org/id/metropolitan-district-council/wolverhampton","706697","Radis Community Care","2409201720171009","91.78","TPP - Home Care","190381525","11/10/2017","Older People Care Purchasing","OP Care Purchasing (Spot Placements)","R5420"
"Wolverhampton City Council","http://opendatacommunities.org/id/metropolitan-district-council/wolverhampton","706697","Radis Community Care","2409201720171009","151.79","TPP - Home Care","190381525","11/10/2017","Older People Care Purchasing","OP Care Purchasing (Spot Placements)","R5420"
"Wolverhampton City Council","http://opendatacommunities.org/id/metropolitan-district-council/wolverhampton","706697","Radis Community Care","2409201720171009","194.15","TPP - Home Care","190381525","11/10/2017","Older People Care Purchasing","OP Care Purchasing (Spot Placements)","R5420"
"Wolverhampton City Council","http://opendatacommunities.org/id/metropolitan-district-council/wolverhampton","706697","Radis Community Care","2409201720171009","49.42","TPP - Home Care","190381525","11/10/2017","Older People Care Purchasing","OP Care Purchasing (Spot Placements)","R5420"
"Wolverhampton City Council","http://opendatacommunities.org/id/metropolitan-district-council/wolverhampton","706697","Radis Community Care","2409201720171009","98.84","TPP - Home Care","190381525","11/10/2017","Older People Care Purchasing","OP Care Purchasing (Spot Placements)","R5420"
"Wolverhampton City Council","http://opendatacommunities.org/id/metropolitan-district-council/wolverhampton","706697","Radis Community Care","2409201720171009","21.18","TPP - Home Care","190381525","11/10/2017","Older People Care Purchasing","OP Care Purchasing (Spot Placements)","R5420"
"Wolverhampton City Council","http://opendatacommunities.org/id/metropolitan-district-council/wolverhampton","706697","Radis Community Care","2409201720171009","187.09","TPP - Home Care","190381525","11/10/2017","Older People Care Purchasing","OP Care Purchasing (Spot Placements)","R5420"
"Wolverhampton City Council","http://opendatacommunities.org/id/metropolitan-district-council/wolverhampton","706697","Radis Community Care","2409201720171009","310.64","TPP - Home Care","190381525","11/10/2017","Older People Care Purchasing","OP Care Purchasing (Spot Placements)","R5420"
"Wolverhampton City Council","http://opendatacommunities.org/id/metropolitan-district-council/wolverhampton","706697","Radis Community Care","2409201720171009","127.08","TPP - Home Care","190381525","11/10/2017","Older People Care Purchasing","OP Care Purchasing (Spot Placements)","R5420"
"Wolverhampton City Council","http://opendatacommunities.org/id/metropolitan-district-council/wolverhampton","706697","Radis Community Care","2409201720171009","95.31","TPP - Home Care","190381525","11/10/2017","Older People Care Purchasing","OP Care Purchasing (Spot Placements)","R5420"
"Wolverhampton City Council","http://opendatacommunities.org/id/metropolitan-district-council/wolverhampton","706697","Radis Community Care","2409201720171009","14.12","TPP - Home Care","190381525","11/10/2017","Older People Care Purchasing","OP Care Purchasing (Spot Placements)","R5420"
"Wolverhampton City Council","http://opendatacommunities.org/id/metropolitan-district-council/wolverhampton","706697","Radis Community Care","2409201720171009","144.73","TPP - Home Care","190381525","11/10/2017","Older People Care Purchasing","OP Care Purchasing (Spot Placements)","R5420"
"Wolverhampton City Council","http://opendatacommunities.org/id/metropolitan-district-council/wolverhampton","706697","Radis Community Care","2409201720171009","148.26","TPP - Home Care","190381525","11/10/2017","Older People Care Purchasing","OP Care Purchasing (Spot Placements)","R5420"
"Wolverhampton City Council","http://opendatacommunities.org/id/metropolitan-district-council/wolverhampton","706697","Radis Community Care","2409201720171009","229.45","TPP - Home Care","190381525","11/10/2017","Older People Care Purchasing","OP Care Purchasing (Spot Placements)","R5420"
"Wolverhampton City Council","http://opendatacommunities.org/id/metropolitan-district-council/wolverhampton","706697","Radis Community Care","2409201720171009","49.42","TPP - Home Care","190381525","11/10/2017","Older People Care Purchasing","OP Care Purchasing (Spot Placements)","R5420"
"Wolverhampton City Council","http://opendatacommunities.org/id/metropolitan-district-council/wolverhampton","706697","Radis Community Care","2409201720171009","42.36","TPP - Home Care","190381525","11/10/2017","Older People Care Purchasing","OP Care Purchasing (Spot Placements)","R5420"
"Wolverhampton City Council","http://opendatacommunities.org/id/metropolitan-district-council/wolverhampton","706697","Radis Community Care","2409201720171009","137.67","TPP - Home Care","190381525","11/10/2017","Older People Care Purchasing","OP Care Purchasing (Spot Placements)","R5420"
"Wolverhampton City Council","http://opendatacommunities.org/id/metropolitan-district-council/wolverhampton","706697","Radis Community Care","2409201720171009","148.26","TPP - Home Care","190381525","11/10/2017","Older People Care Purchasing","OP Care Purchasing (Spot Placements)","R5420"
"Wolverhampton City Council","http://opendatacommunities.org/id/metropolitan-district-council/wolverhampton","706697","Radis Community Care","2409201720171009","148.26","TPP - Home Care","190381525","11/10/2017","Older People Care Purchasing","OP Care Purchasing (Spot Placements)","R5420"
"Wolverhampton City Council","http://opendatacommunities.org/id/metropolitan-district-council/wolverhampton","706697","Radis Community Care","2409201720171009","204.74","TPP - Home Care","190381525","11/10/2017","Older People Care Purchasing","OP Care Purchasing (Spot Placements)","R5420"
"Wolverhampton City Council","http://opendatacommunities.org/id/metropolitan-district-council/wolverhampton","706697","Radis Community Care","2409201720171009","88.25","TPP - Home Care","190381525","11/10/2017","Older People Care Purchasing","OP Care Purchasing (Spot Placements)","R5420"
"Wolverhampton City Council","http://opendatacommunities.org/id/metropolitan-district-council/wolverhampton","706697","Radis Community Care","2409201720171009","74.13","TPP - Home Care","190381525","11/10/2017","Older People Care Purchasing","OP Care Purchasing (Spot Placements)","R5420"
"Wolverhampton City Council","http://opendatacommunities.org/id/metropolitan-district-council/wolverhampton","706697","Radis Community Care","2409201720171009","158.85","TPP - Home Care","190381525","11/10/2017","Older People Care Purchasing","OP Care Purchasing (Spot Placements)","R5420"
"Wolverhampton City Council","http://opendatacommunities.org/id/metropolitan-district-council/wolverhampton","706697","Radis Community Care","2409201720171009","49.42","TPP - Home Care","190381525","11/10/2017","Older People Care Purchasing","OP Care Purchasing (Spot Placements)","R5420"
"Wolverhampton City Council","http://opendatacommunities.org/id/metropolitan-district-council/wolverhampton","706697","Radis Community Care","2409201720171009","95.31","TPP - Home Care","190381525","11/10/2017","Older People Care Purchasing","OP Care Purchasing (Spot Placements)","R5420"
"Wolverhampton City Council","http://opendatacommunities.org/id/metropolitan-district-council/wolverhampton","706697","Radis Community Care","2409201720171009","123.55","TPP - Home Care","190381525","11/10/2017","Older People Care Purchasing","OP Care Purchasing (Spot Placements)","R5420"
"Wolverhampton City Council","http://opendatacommunities.org/id/metropolitan-district-council/wolverhampton","706697","Radis Community Care","2409201720171009","123.55","TPP - Home Care","190381525","11/10/2017","Older People Care Purchasing","OP Care Purchasing (Spot Placements)","R5420"
"Wolverhampton City Council","http://opendatacommunities.org/id/metropolitan-district-council/wolverhampton","706697","Radis Community Care","2409201720171009","148.26","TPP - Home Care","190381525","11/10/2017","Older People Care Purchasing","OP Care Purchasing (Spot Placements)","R5420"
"Wolverhampton City Council","http://opendatacommunities.org/id/metropolitan-district-council/wolverhampton","706697","Radis Community Care","2409201720171009","127.08","TPP - Home Care","190381525","11/10/2017","Older People Care Purchasing","OP Care Purchasing (Spot Placements)","R5420"
"Wolverhampton City Council","http://opendatacommunities.org/id/metropolitan-district-council/wolverhampton","706697","Radis Community Care","2409201720171009","39.00","TPP - Home Care","190381525","11/10/2017","Older People Care Purchasing","OP Care Purchasing (Spot Placements)","R5420"
"Wolverhampton City Council","http://opendatacommunities.org/id/metropolitan-district-council/wolverhampton","706697","Radis Community Care","2409201720171009","98.84","TPP - Home Care","190381525","11/10/2017","Older People Care Purchasing","OP Care Purchasing (Spot Placements)","R5420"
"Wolverhampton City Council","http://opendatacommunities.org/id/metropolitan-district-council/wolverhampton","706697","Radis Community Care","2409201720171009","204.74","TPP - Home Care","190381525","11/10/2017","Older People Care Purchasing","OP Care Purchasing (Spot Placements)","R5420"
"Wolverhampton City Council","http://opendatacommunities.org/id/metropolitan-district-council/wolverhampton","706697","Radis Community Care","2409201720171009","56.48","TPP - Home Care","190381525","11/10/2017","Older People Care Purchasing","OP Care Purchasing (Spot Placements)","R5420"
"Wolverhampton City Council","http://opendatacommunities.org/id/metropolitan-district-council/wolverhampton","706697","Radis Community Care","2409201720171009","201.21","TPP - Home Care","190381525","11/10/2017","Older People Care Purchasing","OP Care Purchasing (Spot Placements)","R5420"
"Wolverhampton City Council","http://opendatacommunities.org/id/metropolitan-district-council/wolverhampton","706697","Radis Community Care","2409201720171009","56.48","TPP - Home Care","190381525","11/10/2017","Older People Care Purchasing","OP Care Purchasing (Spot Placements)","R5420"
"Wolverhampton City Council","http://opendatacommunities.org/id/metropolitan-district-council/wolverhampton","706697","Radis Community Care","2409201720171009","74.13","TPP - Home Care","190381525","11/10/2017","Older People Care Purchasing","OP Care Purchasing (Spot Placements)","R5420"
"Wolverhampton City Council","http://opendatacommunities.org/id/metropolitan-district-council/wolverhampton","706697","Radis Community Care","2409201720171009","14.12","TPP - Home Care","190381525","11/10/2017","Older People Care Purchasing","OP Care Purchasing (Spot Placements)","R5420"
"Wolverhampton City Council","http://opendatacommunities.org/id/metropolitan-district-council/wolverhampton","706697","Radis Community Care","2409201720171009","197.68","TPP - Home Care","190381525","11/10/2017","Older People Care Purchasing","OP Care Purchasing (Spot Placements)","R5420"
"Wolverhampton City Council","http://opendatacommunities.org/id/metropolitan-district-council/wolverhampton","706697","Radis Community Care","2409201720171009","197.68","TPP - Home Care","190381525","11/10/2017","Older People Care Purchasing","OP Care Purchasing (Spot Placements)","R5420"
"Wolverhampton City Council","http://opendatacommunities.org/id/metropolitan-district-council/wolverhampton","706697","Radis Community Care","2409201720171009","211.80","TPP - Home Care","190381525","11/10/2017","Older People Care Purchasing","OP Care Purchasing (Spot Placements)","R5420"
"Wolverhampton City Council","http://opendatacommunities.org/id/metropolitan-district-council/wolverhampton","706697","Radis Community Care","2409201720171009","194.15","TPP - Home Care","190381525","11/10/2017","Older People Care Purchasing","OP Care Purchasing (Spot Placements)","R5420"
"Wolverhampton City Council","http://opendatacommunities.org/id/metropolitan-district-council/wolverhampton","706697","Radis Community Care","2409201720171009","49.42","TPP - Home Care","190381525","11/10/2017","Older People Care Purchasing","OP Care Purchasing (Spot Placements)","R5420"
"Wolverhampton City Council","http://opendatacommunities.org/id/metropolitan-district-council/wolverhampton","706697","Radis Community Care","2409201720171009","127.08","TPP - Home Care","190381525","11/10/2017","Older People Care Purchasing","OP Care Purchasing (Spot Placements)","R5420"
"Wolverhampton City Council","http://opendatacommunities.org/id/metropolitan-district-council/wolverhampton","706697","Radis Community Care","2409201720171009","169.44","TPP - Home Care","190381525","11/10/2017","Older People Care Purchasing","OP Care Purchasing (Spot Placements)","R5420"
"Wolverhampton City Council","http://opendatacommunities.org/id/metropolitan-district-council/wolverhampton","706697","Radis Community Care","2409201720171009","176.50","TPP - Home Care","190381525","11/10/2017","Older People Care Purchasing","OP Care Purchasing (Spot Placements)","R5420"
"Wolverhampton City Council","http://opendatacommunities.org/id/metropolitan-district-council/wolverhampton","706697","Radis Community Care","2409201720171009","225.92","TPP - Home Care","190381525","11/10/2017","Older People Care Purchasing","OP Care Purchasing (Spot Placements)","R5420"
"Wolverhampton City Council","http://opendatacommunities.org/id/metropolitan-district-council/wolverhampton","706697","Radis Community Care","2409201720171009","39.00","TPP - Home Care","190381525","11/10/2017","Older People Care Purchasing","OP Care Purchasing (Spot Placements)","R5420"
"Wolverhampton City Council","http://opendatacommunities.org/id/metropolitan-district-council/wolverhampton","706697","Radis Community Care","2409201720171009","112.96","TPP - Home Care","190381525","11/10/2017","Older People Care Purchasing","OP Care Purchasing (Spot Placements)","R5420"
"Wolverhampton City Council","http://opendatacommunities.org/id/metropolitan-district-council/wolverhampton","706697","Radis Community Care","2409201720171009","102.37","TPP - Home Care","190381525","11/10/2017","Older People Care Purchasing","OP Care Purchasing (Spot Placements)","R5420"
"Wolverhampton City Council","http://opendatacommunities.org/id/metropolitan-district-council/wolverhampton","706697","Radis Community Care","2409201720171009","282.40","TPP - Home Care","190381525","11/10/2017","Older People Care Purchasing","OP Care Purchasing (Spot Placements)","R5420"
"Wolverhampton City Council","http://opendatacommunities.org/id/metropolitan-district-council/wolverhampton","706697","Radis Community Care","2409201720171009","289.46","TPP - Home Care","190381525","11/10/2017","Older People Care Purchasing","OP Care Purchasing (Spot Placements)","R5420"
"Wolverhampton City Council","http://opendatacommunities.org/id/metropolitan-district-council/wolverhampton","706697","Radis Community Care","2409201720171009","172.97","TPP - Home Care","190381525","11/10/2017","Older People Care Purchasing","OP Care Purchasing (Spot Placements)","R5420"
"Wolverhampton City Council","http://opendatacommunities.org/id/metropolitan-district-council/wolverhampton","706697","Radis Community Care","2409201720171009","102.37","TPP - Home Care","190381525","11/10/2017","Older People Care Purchasing","OP Care Purchasing (Spot Placements)","R5420"
"Wolverhampton City Council","http://opendatacommunities.org/id/metropolitan-district-council/wolverhampton","706697","Radis Community Care","2409201720171009","314.17","TPP - Home Care","190381525","11/10/2017","Older People Care Purchasing","OP Care Purchasing (Spot Placements)","R5420"
"Wolverhampton City Council","http://opendatacommunities.org/id/metropolitan-district-council/wolverhampton","706697","Radis Community Care","2409201720171009","52.95","TPP - Home Care","190381525","11/10/2017","Older People Care Purchasing","OP Care Purchasing (Spot Placements)","R5420"
"Wolverhampton City Council","http://opendatacommunities.org/id/metropolitan-district-council/wolverhampton","706697","Radis Community Care","2409201720171009","42.36","TPP - Home Care","190381525","11/10/2017","Older People Care Purchasing","OP Care Purchasing (Spot Placements)","R5420"
"Wolverhampton City Council","http://opendatacommunities.org/id/metropolitan-district-council/wolverhampton","706697","Radis Community Care","2409201720171009","38.83","TPP - Home Care","190381525","11/10/2017","Older People Care Purchasing","OP Care Purchasing (Spot Placements)","R5420"
"Wolverhampton City Council","http://opendatacommunities.org/id/metropolitan-district-council/wolverhampton","706697","Radis Community Care","2409201720171009","49.42","TPP - Home Care","190381525","11/10/2017","Older People Care Purchasing","OP Care Purchasing (Spot Placements)","R5420"
"Wolverhampton City Council","http://opendatacommunities.org/id/metropolitan-district-council/wolverhampton","706697","Radis Community Care","2409201720171009","21.18","TPP - Home Care","190381525","11/10/2017","Older People Care Purchasing","OP Care Purchasing (Spot Placements)","R5420"
"Wolverhampton City Council","http://opendatacommunities.org/id/metropolitan-district-council/wolverhampton","706697","Radis Community Care","2409201720171009","21.18","TPP - Home Care","190381525","11/10/2017","Older People Care Purchasing","OP Care Purchasing (Spot Placements)","R5420"
"Wolverhampton City Council","http://opendatacommunities.org/id/metropolitan-district-council/wolverhampton","706697","Radis Community Care","2409201720171009","112.96","TPP - Home Care","190381525","11/10/2017","Older People Care Purchasing","OP Care Purchasing (Spot Placements)","R5420"
"Wolverhampton City Council","http://opendatacommunities.org/id/metropolitan-district-council/wolverhampton","706697","Radis Community Care","2409201720171009","49.42","TPP - Home Care","190381525","11/10/2017","Older People Care Purchasing","OP Care Purchasing (Spot Placements)","R5420"
"Wolverhampton City Council","http://opendatacommunities.org/id/metropolitan-district-council/wolverhampton","706697","Radis Community Care","2409201720171009","42.36","TPP - Home Care","190381525","11/10/2017","Older People Care Purchasing","OP Care Purchasing (Spot Placements)","R5420"
"Wolverhampton City Council","http://opendatacommunities.org/id/metropolitan-district-council/wolverhampton","706697","Radis Community Care","2409201720171009","218.86","TPP - Home Care","190381525","11/10/2017","Older People Care Purchasing","OP Care Purchasing (Spot Placements)","R5420"
"Wolverhampton City Council","http://opendatacommunities.org/id/metropolitan-district-council/wolverhampton","706697","Radis Community Care","2409201720171009","148.26","TPP - Home Care","190381525","11/10/2017","Older People Care Purchasing","OP Care Purchasing (Spot Placements)","R5420"
"Wolverhampton City Council","http://opendatacommunities.org/id/metropolitan-district-council/wolverhampton","706697","Radis Community Care","2409201720171009","49.42","TPP - Home Care","190381525","11/10/2017","Older People Care Purchasing","OP Care Purchasing (Spot Placements)","R5420"
"Wolverhampton City Council","http://opendatacommunities.org/id/metropolitan-district-council/wolverhampton","706697","Radis Community Care","2409201720171009","14.12","TPP - Home Care","190381525","11/10/2017","Older People Care Purchasing","OP Care Purchasing (Spot Placements)","R5420"
"Wolverhampton City Council","http://opendatacommunities.org/id/metropolitan-district-council/wolverhampton","706697","Radis Community Care","2409201720171009","120.02","TPP - Home Care","190381525","11/10/2017","Older People Care Purchasing","OP Care Purchasing (Spot Placements)","R5420"
"Wolverhampton City Council","http://opendatacommunities.org/id/metropolitan-district-council/wolverhampton","706697","Radis Community Care","2409201720171009","98.84","TPP - Home Care","190381525","11/10/2017","Older People Care Purchasing","OP Care Purchasing (Spot Placements)","R5420"
"Wolverhampton City Council","http://opendatacommunities.org/id/metropolitan-district-council/wolverhampton","706697","Radis Community Care","2409201720171009","95.31","TPP - Home Care","190381525","11/10/2017","Older People Care Purchasing","OP Care Purchasing (Spot Placements)","R5420"
"Wolverhampton City Council","http://opendatacommunities.org/id/metropolitan-district-council/wolverhampton","706697","Radis Community Care","2409201720171009","95.31","TPP - Home Care","190381525","11/10/2017","Older People Care Purchasing","OP Care Purchasing (Spot Placements)","R5420"
"Wolverhampton City Council","http://opendatacommunities.org/id/metropolitan-district-council/wolverhampton","706697","Radis Community Care","2409201720171009","204.74","TPP - Home Care","190381525","11/10/2017","Older People Care Purchasing","OP Care Purchasing (Spot Placements)","R5420"
"Wolverhampton City Council","http://opendatacommunities.org/id/metropolitan-district-council/wolverhampton","706697","Radis Community Care","2409201720171009","35.30","TPP - Home Care","190381525","11/10/2017","Older People Care Purchasing","OP Care Purchasing (Spot Placements)","R5420"
"Wolverhampton City Council","http://opendatacommunities.org/id/metropolitan-district-council/wolverhampton","706697","Radis Community Care","2409201720171009","483.61","TPP - Home Care","190381525","11/10/2017","Older People Care Purchasing","OP Care Purchasing (Spot Placements)","R5420"
"Wolverhampton City Council","http://opendatacommunities.org/id/metropolitan-district-council/wolverhampton","706697","Radis Community Care","2409201720171009","480.08","TPP - Home Care","190381525","11/10/2017","Older People Care Purchasing","OP Care Purchasing (Spot Placements)","R5420"
"Wolverhampton City Council","http://opendatacommunities.org/id/metropolitan-district-council/wolverhampton","706697","Radis Community Care","1009201720171019","52.95","TPP - Home Care","190385248","20/10/2017","Older People Care Purchasing","OP Care Purchasing (Spot Placements)","R5420"
"Wolverhampton City Council","http://opendatacommunities.org/id/metropolitan-district-council/wolverhampton","706697","Radis Community Care","1009201720171019","455.37","TPP - Home Care","190385248","20/10/2017","Older People Care Purchasing","OP Care Purchasing (Spot Placements)","R5420"
"Wolverhampton City Council","http://opendatacommunities.org/id/metropolitan-district-council/wolverhampton","706697","Radis Community Care","1009201720171019","476.55","TPP - Home Care","190385248","20/10/2017","Older People Care Purchasing","OP Care Purchasing (Spot Placements)","R5420"
"Wolverhampton City Council","http://opendatacommunities.org/id/metropolitan-district-council/wolverhampton","706697","Radis Community Care","1009201720171019","74.13","TPP - Home Care","190385248","20/10/2017","Older People Care Purchasing","OP Care Purchasing (Spot Placements)","R5420"
"Wolverhampton City Council","http://opendatacommunities.org/id/metropolitan-district-council/wolverhampton","706697","Radis Community Care","1009201720171019","208.27","TPP - Home Care","190385248","20/10/2017","Older People Care Purchasing","OP Care Purchasing (Spot Placements)","R5420"
"Wolverhampton City Council","http://opendatacommunities.org/id/metropolitan-district-council/wolverhampton","706697","Radis Community Care","1009201720171019","144.73","TPP - Home Care","190385248","20/10/2017","Older People Care Purchasing","OP Care Purchasing (Spot Placements)","R5420"
"Wolverhampton City Council","http://opendatacommunities.org/id/metropolitan-district-council/wolverhampton","706697","Radis Community Care","1009201720171019","56.48","TPP - Home Care","190385248","20/10/2017","Older People Care Purchasing","OP Care Purchasing (Spot Placements)","R5420"
"Wolverhampton City Council","http://opendatacommunities.org/id/metropolitan-district-council/wolverhampton","706697","Radis Community Care","1009201720171019","14.12","TPP - Home Care","190385248","20/10/2017","Older People Care Purchasing","OP Care Purchasing (Spot Placements)","R5420"
"Wolverhampton City Council","http://opendatacommunities.org/id/metropolitan-district-council/wolverhampton","706697","Radis Community Care","1009201720171019","127.08","TPP - Home Care","190385248","20/10/2017","Older People Care Purchasing","OP Care Purchasing (Spot Placements)","R5420"
"Wolverhampton City Council","http://opendatacommunities.org/id/metropolitan-district-council/wolverhampton","706697","Radis Community Care","1009201720171019","98.84","TPP - Home Care","190385248","20/10/2017","Older People Care Purchasing","OP Care Purchasing (Spot Placements)","R5420"
"Wolverhampton City Council","http://opendatacommunities.org/id/metropolitan-district-council/wolverhampton","706697","Radis Community Care","1009201720171019","95.31","TPP - Home Care","190385248","20/10/2017","Older People Care Purchasing","OP Care Purchasing (Spot Placements)","R5420"
"Wolverhampton City Council","http://opendatacommunities.org/id/metropolitan-district-council/wolverhampton","706697","Radis Community Care","1009201720171019","95.31","TPP - Home Care","190385248","20/10/2017","Older People Care Purchasing","OP Care Purchasing (Spot Placements)","R5420"
"Wolverhampton City Council","http://opendatacommunities.org/id/metropolitan-district-council/wolverhampton","706697","Radis Community Care","1009201720171019","14.12","TPP - Home Care","190385248","20/10/2017","Older People Care Purchasing","OP Care Purchasing (Spot Placements)","R5420"
"Wolverhampton City Council","http://opendatacommunities.org/id/metropolitan-district-council/wolverhampton","706697","Radis Community Care","1009201720171019","14.12","TPP - Home Care","190385248","20/10/2017","Older People Care Purchasing","OP Care Purchasing (Spot Placements)","R5420"
"Wolverhampton City Council","http://opendatacommunities.org/id/metropolitan-district-council/wolverhampton","706697","Radis Community Care","1009201720171019","98.84","TPP - Home Care","190385248","20/10/2017","Older People Care Purchasing","OP Care Purchasing (Spot Placements)","R5420"
"Wolverhampton City Council","http://opendatacommunities.org/id/metropolitan-district-council/wolverhampton","706697","Radis Community Care","1009201720171019","98.84","TPP - Home Care","190385248","20/10/2017","Older People Care Purchasing","OP Care Purchasing (Spot Placements)","R5420"
"Wolverhampton City Council","http://opendatacommunities.org/id/metropolitan-district-council/wolverhampton","706697","Radis Community Care","1009201720171019","208.27","TPP - Home Care","190385248","20/10/2017","Older People Care Purchasing","OP Care Purchasing (Spot Placements)","R5420"
"Wolverhampton City Council","http://opendatacommunities.org/id/metropolitan-district-council/wolverhampton","706697","Radis Community Care","1009201720171019","14.12","TPP - Home Care","190385248","20/10/2017","Older People Care Purchasing","OP Care Purchasing (Spot Placements)","R5420"
"Wolverhampton City Council","http://opendatacommunities.org/id/metropolitan-district-council/wolverhampton","706697","Radis Community Care","1009201720171019","194.15","TPP - Home Care","190385248","20/10/2017","Older People Care Purchasing","OP Care Purchasing (Spot Placements)","R5420"
"Wolverhampton City Council","http://opendatacommunities.org/id/metropolitan-district-council/wolverhampton","706697","Radis Community Care","1009201720171019","194.15","TPP - Home Care","190385248","20/10/2017","Older People Care Purchasing","OP Care Purchasing (Spot Placements)","R5420"
"Wolverhampton City Council","http://opendatacommunities.org/id/metropolitan-district-council/wolverhampton","706697","Radis Community Care","1009201720171019","225.92","TPP - Home Care","190385248","20/10/2017","Older People Care Purchasing","OP Care Purchasing (Spot Placements)","R5420"
"Wolverhampton City Council","http://opendatacommunities.org/id/metropolitan-district-council/wolverhampton","706697","Radis Community Care","1009201720171019","187.09","TPP - Home Care","190385248","20/10/2017","Older People Care Purchasing","OP Care Purchasing (Spot Placements)","R5420"
"Wolverhampton City Council","http://opendatacommunities.org/id/metropolitan-district-council/wolverhampton","706697","Radis Community Care","1009201720171019","105.90","TPP - Home Care","190385248","20/10/2017","Older People Care Purchasing","OP Care Purchasing (Spot Placements)","R5420"
"Wolverhampton City Council","http://opendatacommunities.org/id/metropolitan-district-council/wolverhampton","706697","Radis Community Care","1009201720171019","98.84","TPP - Home Care","190385248","20/10/2017","Older People Care Purchasing","OP Care Purchasing (Spot Placements)","R5420"
"Wolverhampton City Council","http://opendatacommunities.org/id/metropolitan-district-council/wolverhampton","706697","Radis Community Care","1009201720171019","49.42","TPP - Home Care","190385248","20/10/2017","Older People Care Purchasing","OP Care Purchasing (Spot Placements)","R5420"
"Wolverhampton City Council","http://opendatacommunities.org/id/metropolitan-district-council/wolverhampton","706697","Radis Community Care","1009201720171019","123.55","TPP - Home Care","190385248","20/10/2017","Older People Care Purchasing","OP Care Purchasing (Spot Placements)","R5420"
"Wolverhampton City Council","http://opendatacommunities.org/id/metropolitan-district-council/wolverhampton","706697","Radis Community Care","1009201720171019","49.42","TPP - Home Care","190385248","20/10/2017","Older People Care Purchasing","OP Care Purchasing (Spot Placements)","R5420"
"Wolverhampton City Council","http://opendatacommunities.org/id/metropolitan-district-council/wolverhampton","706697","Radis Community Care","1009201720171019","49.42","TPP - Home Care","190385248","20/10/2017","Older People Care Purchasing","OP Care Purchasing (Spot Placements)","R5420"
"Wolverhampton City Council","http://opendatacommunities.org/id/metropolitan-district-council/wolverhampton","706697","Radis Community Care","1009201720171019","35.30","TPP - Home Care","190385248","20/10/2017","Older People Care Purchasing","OP Care Purchasing (Spot Placements)","R5420"
"Wolverhampton City Council","http://opendatacommunities.org/id/metropolitan-district-council/wolverhampton","706697","Radis Community Care","1009201720171019","95.31","TPP - Home Care","190385248","20/10/2017","Older People Care Purchasing","OP Care Purchasing (Spot Placements)","R5420"
"Wolverhampton City Council","http://opendatacommunities.org/id/metropolitan-district-council/wolverhampton","706697","Radis Community Care","1009201720171019","98.84","TPP - Home Care","190385248","20/10/2017","Older People Care Purchasing","OP Care Purchasing (Spot Placements)","R5420"
"Wolverhampton City Council","http://opendatacommunities.org/id/metropolitan-district-council/wolverhampton","706697","Radis Community Care","1009201720171019","222.39","TPP - Home Care","190385248","20/10/2017","Older People Care Purchasing","OP Care Purchasing (Spot Placements)","R5420"
"Wolverhampton City Council","http://opendatacommunities.org/id/metropolitan-district-council/wolverhampton","706697","Radis Community Care","1009201720171019","35.30","TPP - Home Care","190385248","20/10/2017","Older People Care Purchasing","OP Care Purchasing (Spot Placements)","R5420"
"Wolverhampton City Council","http://opendatacommunities.org/id/metropolitan-district-council/wolverhampton","706697","Radis Community Care","1009201720171019","208.27","TPP - Home Care","190385248","20/10/2017","Older People Care Purchasing","OP Care Purchasing (Spot Placements)","R5420"
"Wolverhampton City Council","http://opendatacommunities.org/id/metropolitan-district-council/wolverhampton","706697","Radis Community Care","1009201720171019","52.95","TPP - Home Care","190385248","20/10/2017","Older People Care Purchasing","OP Care Purchasing (Spot Placements)","R5420"
"Wolverhampton City Council","http://opendatacommunities.org/id/metropolitan-district-council/wolverhampton","706697","Radis Community Care","1009201720171019","98.84","TPP - Home Care","190385248","20/10/2017","Older People Care Purchasing","OP Care Purchasing (Spot Placements)","R5420"
"Wolverhampton City Council","http://opendatacommunities.org/id/metropolitan-district-council/wolverhampton","706697","Radis Community Care","1009201720171019","49.42","TPP - Home Care","190385248","20/10/2017","Older People Care Purchasing","OP Care Purchasing (Spot Placements)","R5420"
"Wolverhampton City Council","http://opendatacommunities.org/id/metropolitan-district-council/wolverhampton","706697","Radis Community Care","1009201720171019","98.84","TPP - Home Care","190385248","20/10/2017","Older People Care Purchasing","OP Care Purchasing (Spot Placements)","R5420"
"Wolverhampton City Council","http://opendatacommunities.org/id/metropolitan-district-council/wolverhampton","706697","Radis Community Care","1009201720171019","21.18","TPP - Home Care","190385248","20/10/2017","Older People Care Purchasing","OP Care Purchasing (Spot Placements)","R5420"
"Wolverhampton City Council","http://opendatacommunities.org/id/metropolitan-district-council/wolverhampton","706697","Radis Community Care","1009201720171019","172.97","TPP - Home Care","190385248","20/10/2017","Older People Care Purchasing","OP Care Purchasing (Spot Placements)","R5420"
"Wolverhampton City Council","http://opendatacommunities.org/id/metropolitan-district-council/wolverhampton","706697","Radis Community Care","1009201720171019","324.76","TPP - Home Care","190385248","20/10/2017","Older People Care Purchasing","OP Care Purchasing (Spot Placements)","R5420"
"Wolverhampton City Council","http://opendatacommunities.org/id/metropolitan-district-council/wolverhampton","706697","Radis Community Care","1009201720171019","321.23","TPP - Home Care","190385248","20/10/2017","Older People Care Purchasing","OP Care Purchasing (Spot Placements)","R5420"
"Wolverhampton City Council","http://opendatacommunities.org/id/metropolitan-district-council/wolverhampton","706697","Radis Community Care","1009201720171019","52.95","TPP - Home Care","190385248","20/10/2017","Older People Care Purchasing","OP Care Purchasing (Spot Placements)","R5420"
"Wolverhampton City Council","http://opendatacommunities.org/id/metropolitan-district-council/wolverhampton","706697","Radis Community Care","1009201720171019","49.42","TPP - Home Care","190385248","20/10/2017","Older People Care Purchasing","OP Care Purchasing (Spot Placements)","R5420"
"Wolverhampton City Council","http://opendatacommunities.org/id/metropolitan-district-council/wolverhampton","706697","Radis Community Care","1009201720171019","38.83","TPP - Home Care","190385248","20/10/2017","Older People Care Purchasing","OP Care Purchasing (Spot Placements)","R5420"
"Wolverhampton City Council","http://opendatacommunities.org/id/metropolitan-district-council/wolverhampton","706697","Radis Community Care","1009201720171019","49.42","TPP - Home Care","190385248","20/10/2017","Older People Care Purchasing","OP Care Purchasing (Spot Placements)","R5420"
"Wolverhampton City Council","http://opendatacommunities.org/id/metropolitan-district-council/wolverhampton","706697","Radis Community Care","1009201720171019","74.13","TPP - Home Care","190385248","20/10/2017","Older People Care Purchasing","OP Care Purchasing (Spot Placements)","R5420"
"Wolverhampton City Council","http://opendatacommunities.org/id/metropolitan-district-council/wolverhampton","706697","Radis Community Care","1009201720171019","70.60","TPP - Home Care","190385248","20/10/2017","Older People Care Purchasing","OP Care Purchasing (Spot Placements)","R5420"
"Wolverhampton City Council","http://opendatacommunities.org/id/metropolitan-district-council/wolverhampton","706697","Radis Community Care","1009201720171019","31.77","TPP - Home Care","190385248","20/10/2017","Older People Care Purchasing","OP Care Purchasing (Spot Placements)","R5420"
"Wolverhampton City Council","http://opendatacommunities.org/id/metropolitan-district-council/wolverhampton","706697","Radis Community Care","1009201720171019","197.68","TPP - Home Care","190385248","20/10/2017","Older People Care Purchasing","OP Care Purchasing (Spot Placements)","R5420"
"Wolverhampton City Council","http://opendatacommunities.org/id/metropolitan-district-council/wolverhampton","706697","Radis Community Care","1009201720171019","190.62","TPP - Home Care","190385248","20/10/2017","Older People Care Purchasing","OP Care Purchasing (Spot Placements)","R5420"
"Wolverhampton City Council","http://opendatacommunities.org/id/metropolitan-district-council/wolverhampton","706697","Radis Community Care","1009201720171019","127.08","TPP - Home Care","190385248","20/10/2017","Older People Care Purchasing","OP Care Purchasing (Spot Placements)","R5420"
"Wolverhampton City Council","http://opendatacommunities.org/id/metropolitan-district-council/wolverhampton","706697","Radis Community Care","1009201720171019","180.03","TPP - Home Care","190385248","20/10/2017","Older People Care Purchasing","OP Care Purchasing (Spot Placements)","R5420"
"Wolverhampton City Council","http://opendatacommunities.org/id/metropolitan-district-council/wolverhampton","706697","Radis Community Care","1009201720171019","148.26","TPP - Home Care","190385248","20/10/2017","Older People Care Purchasing","OP Care Purchasing (Spot Placements)","R5420"
"Wolverhampton City Council","http://opendatacommunities.org/id/metropolitan-district-council/wolverhampton","706697","Radis Community Care","1009201720171019","176.50","TPP - Home Care","190385248","20/10/2017","Older People Care Purchasing","OP Care Purchasing (Spot Placements)","R5420"
"Wolverhampton City Council","http://opendatacommunities.org/id/metropolitan-district-council/wolverhampton","706697","Radis Community Care","1009201720171019","222.39","TPP - Home Care","190385248","20/10/2017","Older People Care Purchasing","OP Care Purchasing (Spot Placements)","R5420"
"Wolverhampton City Council","http://opendatacommunities.org/id/metropolitan-district-council/wolverhampton","706697","Radis Community Care","1009201720171019","222.39","TPP - Home Care","190385248","20/10/2017","Older People Care Purchasing","OP Care Purchasing (Spot Placements)","R5420"
"Wolverhampton City Council","http://opendatacommunities.org/id/metropolitan-district-council/wolverhampton","706697","Radis Community Care","1009201720171019","35.30","TPP - Home Care","190385248","20/10/2017","Older People Care Purchasing","OP Care Purchasing (Spot Placements)","R5420"
"Wolverhampton City Council","http://opendatacommunities.org/id/metropolitan-district-council/wolverhampton","706697","Radis Community Care","1009201720171019","105.90","TPP - Home Care","190385248","20/10/2017","Older People Care Purchasing","OP Care Purchasing (Spot Placements)","R5420"
"Wolverhampton City Council","http://opendatacommunities.org/id/metropolitan-district-council/wolverhampton","706697","Radis Community Care","1009201720171019","98.84","TPP - Home Care","190385248","20/10/2017","Older People Care Purchasing","OP Care Purchasing (Spot Placements)","R5420"
"Wolverhampton City Council","http://opendatacommunities.org/id/metropolitan-district-council/wolverhampton","706697","Radis Community Care","1009201720171019","49.42","TPP - Home Care","190385248","20/10/2017","Older People Care Purchasing","OP Care Purchasing (Spot Placements)","R5420"
"Wolverhampton City Council","http://opendatacommunities.org/id/metropolitan-district-council/wolverhampton","706697","Radis Community Care","1009201720171019","218.86","TPP - Home Care","190385248","20/10/2017","Older People Care Purchasing","OP Care Purchasing (Spot Placements)","R5420"
"Wolverhampton City Council","http://opendatacommunities.org/id/metropolitan-district-council/wolverhampton","706697","Radis Community Care","1009201720171019","176.50","TPP - Home Care","190385248","20/10/2017","Older People Care Purchasing","OP Care Purchasing (Spot Placements)","R5420"
"Wolverhampton City Council","http://opendatacommunities.org/id/metropolitan-district-council/wolverhampton","706697","Radis Community Care","1009201720171019","105.90","TPP - Home Care","190385248","20/10/2017","Older People Care Purchasing","OP Care Purchasing (Spot Placements)","R5420"
"Wolverhampton City Council","http://opendatacommunities.org/id/metropolitan-district-council/wolverhampton","706697","Radis Community Care","1009201720171019","7.06","TPP - Home Care","190385248","20/10/2017","Older People Care Purchasing","OP Care Purchasing (Spot Placements)","R5420"
"Wolverhampton City Council","http://opendatacommunities.org/id/metropolitan-district-council/wolverhampton","706697","Radis Community Care","1009201720171019","148.26","TPP - Home Care","190385248","20/10/2017","Older People Care Purchasing","OP Care Purchasing (Spot Placements)","R5420"
"Wolverhampton City Council","http://opendatacommunities.org/id/metropolitan-district-council/wolverhampton","706697","Radis Community Care","1009201720171019","91.78","TPP - Home Care","190385248","20/10/2017","Older People Care Purchasing","OP Care Purchasing (Spot Placements)","R5420"
"Wolverhampton City Council","http://opendatacommunities.org/id/metropolitan-district-council/wolverhampton","706697","Radis Community Care","1009201720171019","24.71","TPP - Home Care","190385248","20/10/2017","Older People Care Purchasing","OP Care Purchasing (Spot Placements)","R5420"
"Wolverhampton City Council","http://opendatacommunities.org/id/metropolitan-district-council/wolverhampton","706697","Radis Community Care","1009201720171019","14.12","TPP - Home Care","190385248","20/10/2017","Older People Care Purchasing","OP Care Purchasing (Spot Placements)","R5420"
"Wolverhampton City Council","http://opendatacommunities.org/id/metropolitan-district-council/wolverhampton","706697","Radis Community Care","1009201720171019","218.86","TPP - Home Care","190385248","20/10/2017","Older People Care Purchasing","OP Care Purchasing (Spot Placements)","R5420"
"Wolverhampton City Council","http://opendatacommunities.org/id/metropolitan-district-council/wolverhampton","706697","Radis Community Care","1009201720171019","222.39","TPP - Home Care","190385248","20/10/2017","Older People Care Purchasing","OP Care Purchasing (Spot Placements)","R5420"
"Wolverhampton City Council","http://opendatacommunities.org/id/metropolitan-district-council/wolverhampton","706697","Radis Community Care","1009201720171019","155.32","TPP - Home Care","190385248","20/10/2017","Older People Care Purchasing","OP Care Purchasing (Spot Placements)","R5420"
"Wolverhampton City Council","http://opendatacommunities.org/id/metropolitan-district-council/wolverhampton","706697","Radis Community Care","1009201720171019","98.84","TPP - Home Care","190385248","20/10/2017","Older People Care Purchasing","OP Care Purchasing (Spot Placements)","R5420"
"Wolverhampton City Council","http://opendatacommunities.org/id/metropolitan-district-council/wolverhampton","706697","Radis Community Care","1009201720171019","49.42","TPP - Home Care","190385248","20/10/2017","Older People Care Purchasing","OP Care Purchasing (Spot Placements)","R5420"
"Wolverhampton City Council","http://opendatacommunities.org/id/metropolitan-district-council/wolverhampton","706697","Radis Community Care","1009201720171019","148.26","TPP - Home Care","190385248","20/10/2017","Older People Care Purchasing","OP Care Purchasing (Spot Placements)","R5420"
"Wolverhampton City Council","http://opendatacommunities.org/id/metropolitan-district-council/wolverhampton","706697","Radis Community Care","1009201720171019","155.32","TPP - Home Care","190385248","20/10/2017","Older People Care Purchasing","OP Care Purchasing (Spot Placements)","R5420"
"Wolverhampton City Council","http://opendatacommunities.org/id/metropolitan-district-council/wolverhampton","706697","Radis Community Care","1009201720171019","222.39","TPP - Home Care","190385248","20/10/2017","Older People Care Purchasing","OP Care Purchasing (Spot Placements)","R5420"
"Wolverhampton City Council","http://opendatacommunities.org/id/metropolitan-district-council/wolverhampton","706697","Radis Community Care","1009201720171019","42.36","TPP - Home Care","190385248","20/10/2017","Older People Care Purchasing","OP Care Purchasing (Spot Placements)","R5420"
"Wolverhampton City Council","http://opendatacommunities.org/id/metropolitan-district-council/wolverhampton","706697","Radis Community Care","1009201720171019","158.85","TPP - Home Care","190385248","20/10/2017","Older People Care Purchasing","OP Care Purchasing (Spot Placements)","R5420"
"Wolverhampton City Council","http://opendatacommunities.org/id/metropolitan-district-council/wolverhampton","706697","Radis Community Care","1009201720171019","148.26","TPP - Home Care","190385248","20/10/2017","Older People Care Purchasing","OP Care Purchasing (Spot Placements)","R5420"
"Wolverhampton City Council","http://opendatacommunities.org/id/metropolitan-district-council/wolverhampton","706697","Radis Community Care","1009201720171019","141.20","TPP - Home Care","190385248","20/10/2017","Older People Care Purchasing","OP Care Purchasing (Spot Placements)","R5420"
"Wolverhampton City Council","http://opendatacommunities.org/id/metropolitan-district-council/wolverhampton","706697","Radis Community Care","1009201720171019","225.92","TPP - Home Care","190385248","20/10/2017","Older People Care Purchasing","OP Care Purchasing (Spot Placements)","R5420"
"Wolverhampton City Council","http://opendatacommunities.org/id/metropolitan-district-council/wolverhampton","706697","Radis Community Care","1009201720171019","74.13","TPP - Home Care","190385248","20/10/2017","Older People Care Purchasing","OP Care Purchasing (Spot Placements)","R5420"
"Wolverhampton City Council","http://opendatacommunities.org/id/metropolitan-district-council/wolverhampton","706697","Radis Community Care","1009201720171019","102.37","TPP - Home Care","190385248","20/10/2017","Older People Care Purchasing","OP Care Purchasing (Spot Placements)","R5420"
"Wolverhampton City Council","http://opendatacommunities.org/id/metropolitan-district-council/wolverhampton","706697","Radis Community Care","1009201720171019","102.37","TPP - Home Care","190385248","20/10/2017","Older People Care Purchasing","OP Care Purchasing (Spot Placements)","R5420"
"Wolverhampton City Council","http://opendatacommunities.org/id/metropolitan-district-council/wolverhampton","706697","Radis Community Care","1009201720171019","95.31","TPP - Home Care","190385248","20/10/2017","Older People Care Purchasing","OP Care Purchasing (Spot Placements)","R5420"
"Wolverhampton City Council","http://opendatacommunities.org/id/metropolitan-district-council/wolverhampton","706697","Radis Community Care","1009201720171019","35.30","TPP - Home Care","190385248","20/10/2017","Older People Care Purchasing","OP Care Purchasing (Spot Placements)","R5420"
"Wolverhampton City Council","http://opendatacommunities.org/id/metropolitan-district-council/wolverhampton","706697","Radis Community Care","1009201720171019","56.48","TPP - Home Care","190385248","20/10/2017","Older People Care Purchasing","OP Care Purchasing (Spot Placements)","R5420"
"Wolverhampton City Council","http://opendatacommunities.org/id/metropolitan-district-council/wolverhampton","706697","Radis Community Care","1009201720171019","49.42","TPP - Home Care","190385248","20/10/2017","Older People Care Purchasing","OP Care Purchasing (Spot Placements)","R5420"
"Wolverhampton City Council","http://opendatacommunities.org/id/metropolitan-district-council/wolverhampton","706697","Radis Community Care","1009201720171019","98.84","TPP - Home Care","190385248","20/10/2017","Older People Care Purchasing","OP Care Purchasing (Spot Placements)","R5420"
"Wolverhampton City Council","http://opendatacommunities.org/id/metropolitan-district-council/wolverhampton","706697","Radis Community Care","1009201720171019","39.00","TPP - Home Care","190385248","20/10/2017","Older People Care Purchasing","OP Care Purchasing (Spot Placements)","R5420"
"Wolverhampton City Council","http://opendatacommunities.org/id/metropolitan-district-council/wolverhampton","706697","Radis Community Care","1009201720171019","105.90","TPP - Home Care","190385248","20/10/2017","Older People Care Purchasing","OP Care Purchasing (Spot Placements)","R5420"
"Wolverhampton City Council","http://opendatacommunities.org/id/metropolitan-district-council/wolverhampton","706697","Radis Community Care","1009201720171019","98.84","TPP - Home Care","190385248","20/10/2017","Older People Care Purchasing","OP Care Purchasing (Spot Placements)","R5420"
"Wolverhampton City Council","http://opendatacommunities.org/id/metropolitan-district-council/wolverhampton","706697","Radis Community Care","1009201720171019","254.16","TPP - Home Care","190385248","20/10/2017","Older People Care Purchasing","OP Care Purchasing (Spot Placements)","R5420"
"Wolverhampton City Council","http://opendatacommunities.org/id/metropolitan-district-council/wolverhampton","706697","Radis Community Care","1009201720171019","289.46","TPP - Home Care","190385248","20/10/2017","Older People Care Purchasing","OP Care Purchasing (Spot Placements)","R5420"
"Wolverhampton City Council","http://opendatacommunities.org/id/metropolitan-district-council/wolverhampton","706697","Radis Community Care","1009201720171019","88.25","TPP - Home Care","190385248","20/10/2017","Older People Care Purchasing","OP Care Purchasing (Spot Placements)","R5420"
"Wolverhampton City Council","http://opendatacommunities.org/id/metropolitan-district-council/wolverhampton","706697","Radis Community Care","1009201720171019","137.67","TPP - Home Care","190385248","20/10/2017","Older People Care Purchasing","OP Care Purchasing (Spot Placements)","R5420"
"Wolverhampton City Council","http://opendatacommunities.org/id/metropolitan-district-council/wolverhampton","706697","Radis Community Care","1009201720171019","151.79","TPP - Home Care","190385248","20/10/2017","Older People Care Purchasing","OP Care Purchasing (Spot Placements)","R5420"
"Wolverhampton City Council","http://opendatacommunities.org/id/metropolitan-district-council/wolverhampton","706697","Radis Community Care","1009201720171019","63.54","TPP - Home Care","190385248","20/10/2017","Older People Care Purchasing","OP Care Purchasing (Spot Placements)","R5420"
"Wolverhampton City Council","http://opendatacommunities.org/id/metropolitan-district-council/wolverhampton","706697","Radis Community Care","1009201720171019","28.24","TPP - Home Care","190385248","20/10/2017","Older People Care Purchasing","OP Care Purchasing (Spot Placements)","R5420"
"Wolverhampton City Council","http://opendatacommunities.org/id/metropolitan-district-council/wolverhampton","706697","Radis Community Care","1009201720171019","49.42","TPP - Home Care","190385248","20/10/2017","Older People Care Purchasing","OP Care Purchasing (Spot Placements)","R5420"
"Wolverhampton City Council","http://opendatacommunities.org/id/metropolitan-district-council/wolverhampton","706697","Radis Community Care","1009201720171019","102.37","TPP - Home Care","190385248","20/10/2017","Older People Care Purchasing","OP Care Purchasing (Spot Placements)","R5420"
"Wolverhampton City Council","http://opendatacommunities.org/id/metropolitan-district-council/wolverhampton","706697","Radis Community Care","1009201720171019","134.14","TPP - Home Care","190385248","20/10/2017","Older People Care Purchasing","OP Care Purchasing (Spot Placements)","R5420"
"Wolverhampton City Council","http://opendatacommunities.org/id/metropolitan-district-council/wolverhampton","706697","Radis Community Care","1009201720171019","112.96","TPP - Home Care","190385248","20/10/2017","Older People Care Purchasing","OP Care Purchasing (Spot Placements)","R5420"
"Wolverhampton City Council","http://opendatacommunities.org/id/metropolitan-district-council/wolverhampton","706697","Radis Community Care","1009201720171019","148.26","TPP - Home Care","190385248","20/10/2017","Older People Care Purchasing","OP Care Purchasing (Spot Placements)","R5420"
"Wolverhampton City Council","http://opendatacommunities.org/id/metropolitan-district-council/wolverhampton","706697","Radis Community Care","1009201720171019","98.84","TPP - Home Care","190385248","20/10/2017","Older People Care Purchasing","OP Care Purchasing (Spot Placements)","R5420"
"Wolverhampton City Council","http://opendatacommunities.org/id/metropolitan-district-council/wolverhampton","706697","Radis Community Care","1009201720171019","98.84","TPP - Home Care","190385248","20/10/2017","Older People Care Purchasing","OP Care Purchasing (Spot Placements)","R5420"
"Wolverhampton City Council","http://opendatacommunities.org/id/metropolitan-district-council/wolverhampton","706697","Radis Community Care","1009201720171019","172.97","TPP - Home Care","190385248","20/10/2017","Older People Care Purchasing","OP Care Purchasing (Spot Placements)","R5420"
"Wolverhampton City Council","http://opendatacommunities.org/id/metropolitan-district-council/wolverhampton","706697","Radis Community Care","1009201720171019","250.63","TPP - Home Care","190385248","20/10/2017","Older People Care Purchasing","OP Care Purchasing (Spot Placements)","R5420"
"Wolverhampton City Council","http://opendatacommunities.org/id/metropolitan-district-council/wolverhampton","706697","Radis Community Care","1009201720171019","144.73","TPP - Home Care","190385248","20/10/2017","Older People Care Purchasing","OP Care Purchasing (Spot Placements)","R5420"
"Wolverhampton City Council","http://opendatacommunities.org/id/metropolitan-district-council/wolverhampton","706697","Radis Community Care","1009201720171019","35.30","TPP - Home Care","190385248","20/10/2017","Older People Care Purchasing","OP Care Purchasing (Spot Placements)","R5420"
"Wolverhampton City Council","http://opendatacommunities.org/id/metropolitan-district-council/wolverhampton","706697","Radis Community Care","1009201720171019","31.77","TPP - Home Care","190385248","20/10/2017","Older People Care Purchasing","OP Care Purchasing (Spot Placements)","R5420"
"Wolverhampton City Council","http://opendatacommunities.org/id/metropolitan-district-council/wolverhampton","706697","Radis Community Care","1009201720171019","158.85","TPP - Home Care","190385248","20/10/2017","Older People Care Purchasing","OP Care Purchasing (Spot Placements)","R5420"
"Wolverhampton City Council","http://opendatacommunities.org/id/metropolitan-district-council/wolverhampton","706697","Radis Community Care","1009201720171019","45.89","TPP - Home Care","190385248","20/10/2017","Older People Care Purchasing","OP Care Purchasing (Spot Placements)","R5420"
"Wolverhampton City Council","http://opendatacommunities.org/id/metropolitan-district-council/wolverhampton","706697","Radis Community Care","1009201720171019","187.09","TPP - Home Care","190385248","20/10/2017","Older People Care Purchasing","OP Care Purchasing (Spot Placements)","R5420"
"Wolverhampton City Council","http://opendatacommunities.org/id/metropolitan-district-council/wolverhampton","706697","Radis Community Care","1009201720171019","148.26","TPP - Home Care","190385248","20/10/2017","Older People Care Purchasing","OP Care Purchasing (Spot Placements)","R5420"
"Wolverhampton City Council","http://opendatacommunities.org/id/metropolitan-district-council/wolverhampton","706697","Radis Community Care","1009201720171019","84.72","TPP - Home Care","190385248","20/10/2017","Older People Care Purchasing","OP Care Purchasing (Spot Placements)","R5420"
"Wolverhampton City Council","http://opendatacommunities.org/id/metropolitan-district-council/wolverhampton","706697","Radis Community Care","1009201720171019","98.84","TPP - Home Care","190385248","20/10/2017","Older People Care Purchasing","OP Care Purchasing (Spot Placements)","R5420"
"Wolverhampton City Council","http://opendatacommunities.org/id/metropolitan-district-council/wolverhampton","706697","Radis Community Care","1009201720171019","109.43","TPP - Home Care","190385248","20/10/2017","Older People Care Purchasing","OP Care Purchasing (Spot Placements)","R5420"
"Wolverhampton City Council","http://opendatacommunities.org/id/metropolitan-district-council/wolverhampton","706697","Radis Community Care","1009201720171019","49.42","TPP - Home Care","190385248","20/10/2017","Older People Care Purchasing","OP Care Purchasing (Spot Placements)","R5420"
"Wolverhampton City Council","http://opendatacommunities.org/id/metropolitan-district-council/wolverhampton","706697","Radis Community Care","1009201720171019","197.68","TPP - Home Care","190385248","20/10/2017","Older People Care Purchasing","OP Care Purchasing (Spot Placements)","R5420"
"Wolverhampton City Council","http://opendatacommunities.org/id/metropolitan-district-council/wolverhampton","706697","Radis Community Care","1009201720171019","98.84","TPP - Home Care","190385248","20/10/2017","Older People Care Purchasing","OP Care Purchasing (Spot Placements)","R5420"
"Wolverhampton City Council","http://opendatacommunities.org/id/metropolitan-district-council/wolverhampton","706697","Radis Community Care","1009201720171019","151.79","TPP - Home Care","190385248","20/10/2017","Older People Care Purchasing","OP Care Purchasing (Spot Placements)","R5420"
"Wolverhampton City Council","http://opendatacommunities.org/id/metropolitan-district-council/wolverhampton","706697","Radis Community Care","1009201720171019","183.56","TPP - Home Care","190385248","20/10/2017","Older People Care Purchasing","OP Care Purchasing (Spot Placements)","R5420"
"Wolverhampton City Council","http://opendatacommunities.org/id/metropolitan-district-council/wolverhampton","706697","Radis Community Care","1009201720171019","180.03","TPP - Home Care","190385248","20/10/2017","Older People Care Purchasing","OP Care Purchasing (Spot Placements)","R5420"
"Wolverhampton City Council","http://opendatacommunities.org/id/metropolitan-district-council/wolverhampton","706697","Radis Community Care","1009201720171019","49.42","TPP - Home Care","190385248","20/10/2017","Older People Care Purchasing","OP Care Purchasing (Spot Placements)","R5420"
"Wolverhampton City Council","http://opendatacommunities.org/id/metropolitan-district-council/wolverhampton","706697","Radis Community Care","1009201720171019","137.67","TPP - Home Care","190385248","20/10/2017","Older People Care Purchasing","OP Care Purchasing (Spot Placements)","R5420"
"Wolverhampton City Council","http://opendatacommunities.org/id/metropolitan-district-council/wolverhampton","706697","Radis Community Care","1009201720171019","148.26","TPP - Home Care","190385248","20/10/2017","Older People Care Purchasing","OP Care Purchasing (Spot Placements)","R5420"
"Wolverhampton City Council","http://opendatacommunities.org/id/metropolitan-district-council/wolverhampton","706697","Radis Community Care","1009201720171019","148.26","TPP - Home Care","190385248","20/10/2017","Older People Care Purchasing","OP Care Purchasing (Spot Placements)","R5420"
"Wolverhampton City Council","http://opendatacommunities.org/id/metropolitan-district-council/wolverhampton","706697","Radis Community Care","1009201720171019","190.62","TPP - Home Care","190385248","20/10/2017","Older People Care Purchasing","OP Care Purchasing (Spot Placements)","R5420"
"Wolverhampton City Council","http://opendatacommunities.org/id/metropolitan-district-council/wolverhampton","706697","Radis Community Care","1009201720171019","172.97","TPP - Home Care","190385248","20/10/2017","Older People Care Purchasing","OP Care Purchasing (Spot Placements)","R5420"
"Wolverhampton City Council","http://opendatacommunities.org/id/metropolitan-district-council/wolverhampton","706697","Radis Community Care","1009201720171019","169.44","TPP - Home Care","190385248","20/10/2017","Older People Care Purchasing","OP Care Purchasing (Spot Placements)","R5420"
"Wolverhampton City Council","http://opendatacommunities.org/id/metropolitan-district-council/wolverhampton","706697","Radis Community Care","1009201720171019","225.92","TPP - Home Care","190385248","20/10/2017","Older People Care Purchasing","OP Care Purchasing (Spot Placements)","R5420"
"Wolverhampton City Council","http://opendatacommunities.org/id/metropolitan-district-council/wolverhampton","706697","Radis Community Care","1009201720171019","225.92","TPP - Home Care","190385248","20/10/2017","Older People Care Purchasing","OP Care Purchasing (Spot Placements)","R5420"
"Wolverhampton City Council","http://opendatacommunities.org/id/metropolitan-district-council/wolverhampton","706697","Radis Community Care","0810201720171011","296.52","TPP - Home Care","190382458","13/10/2017","Older People Care Purchasing","OP Care Purchasing (Spot Placements)","R5420"
"Wolverhampton City Council","http://opendatacommunities.org/id/metropolitan-district-council/wolverhampton","706697","Radis Community Care","0810201720171011","176.50","TPP - Home Care","190382458","13/10/2017","Older People Care Purchasing","OP Care Purchasing (Spot Placements)","R5420"
"Wolverhampton City Council","http://opendatacommunities.org/id/metropolitan-district-council/wolverhampton","706697","Radis Community Care","0810201720171011","77.66","TPP - Home Care","190382458","13/10/2017","Older People Care Purchasing","OP Care Purchasing (Spot Placements)","R5420"
"Wolverhampton City Council","http://opendatacommunities.org/id/metropolitan-district-council/wolverhampton","706697","Radis Community Care","0810201720171011","98.84","TPP - Home Care","190382458","13/10/2017","Older People Care Purchasing","OP Care Purchasing (Spot Placements)","R5420"
"Wolverhampton City Council","http://opendatacommunities.org/id/metropolitan-district-council/wolverhampton","706697","Radis Community Care","0810201720171011","49.42","TPP - Home Care","190382458","13/10/2017","Older People Care Purchasing","OP Care Purchasing (Spot Placements)","R5420"
"Wolverhampton City Council","http://opendatacommunities.org/id/metropolitan-district-council/wolverhampton","706697","Radis Community Care","0810201720171011","98.84","TPP - Home Care","190382458","13/10/2017","Older People Care Purchasing","OP Care Purchasing (Spot Placements)","R5420"
"Wolverhampton City Council","http://opendatacommunities.org/id/metropolitan-district-council/wolverhampton","706697","Radis Community Care","0810201720171011","98.84","TPP - Home Care","190382458","13/10/2017","Older People Care Purchasing","OP Care Purchasing (Spot Placements)","R5420"
"Wolverhampton City Council","http://opendatacommunities.org/id/metropolitan-district-council/wolverhampton","706697","Radis Community Care","0810201720171011","70.60","TPP - Home Care","190382458","13/10/2017","Older People Care Purchasing","OP Care Purchasing (Spot Placements)","R5420"
"Wolverhampton City Council","http://opendatacommunities.org/id/metropolitan-district-council/wolverhampton","706697","Radis Community Care","0810201720171011","70.60","TPP - Home Care","190382458","13/10/2017","Older People Care Purchasing","OP Care Purchasing (Spot Placements)","R5420"
"Wolverhampton City Council","http://opendatacommunities.org/id/metropolitan-district-council/wolverhampton","706697","Radis Community Care","0810201720171011","98.84","TPP - Home Care","190382458","13/10/2017","Older People Care Purchasing","OP Care Purchasing (Spot Placements)","R5420"
"Wolverhampton City Council","http://opendatacommunities.org/id/metropolitan-district-council/wolverhampton","706697","Radis Community Care","0810201720171011","102.37","TPP - Home Care","190382458","13/10/2017","Older People Care Purchasing","OP Care Purchasing (Spot Placements)","R5420"
"Wolverhampton City Council","http://opendatacommunities.org/id/metropolitan-district-council/wolverhampton","706697","Radis Community Care","0810201720171011","52.95","TPP - Home Care","190382458","13/10/2017","Older People Care Purchasing","OP Care Purchasing (Spot Placements)","R5420"
"Wolverhampton City Council","http://opendatacommunities.org/id/metropolitan-district-council/wolverhampton","706697","Radis Community Care","0810201720171011","49.42","TPP - Home Care","190382458","13/10/2017","Older People Care Purchasing","OP Care Purchasing (Spot Placements)","R5420"
"Wolverhampton City Council","http://opendatacommunities.org/id/metropolitan-district-council/wolverhampton","706697","Radis Community Care","0810201720171011","95.31","TPP - Home Care","190382458","13/10/2017","Older People Care Purchasing","OP Care Purchasing (Spot Placements)","R5420"
"Wolverhampton City Council","http://opendatacommunities.org/id/metropolitan-district-council/wolverhampton","706697","Radis Community Care","0810201720171011","215.33","TPP - Home Care","190382458","13/10/2017","Older People Care Purchasing","OP Care Purchasing (Spot Placements)","R5420"
"Wolverhampton City Council","http://opendatacommunities.org/id/metropolitan-district-council/wolverhampton","706697","Radis Community Care","0810201720171011","49.42","TPP - Home Care","190382458","13/10/2017","Older People Care Purchasing","OP Care Purchasing (Spot Placements)","R5420"
"Wolverhampton City Council","http://opendatacommunities.org/id/metropolitan-district-council/wolverhampton","706697","Radis Community Care","0810201720171011","123.55","TPP - Home Care","190382458","13/10/2017","Older People Care Purchasing","OP Care Purchasing (Spot Placements)","R5420"
"Wolverhampton City Council","http://opendatacommunities.org/id/metropolitan-district-council/wolverhampton","706697","Radis Community Care","0810201720171011","49.42","TPP - Home Care","190382458","13/10/2017","Older People Care Purchasing","OP Care Purchasing (Spot Placements)","R5420"
"Wolverhampton City Council","http://opendatacommunities.org/id/metropolitan-district-council/wolverhampton","706697","Radis Community Care","0810201720171011","81.19","TPP - Home Care","190382458","13/10/2017","Older People Care Purchasing","OP Care Purchasing (Spot Placements)","R5420"
"Wolverhampton City Council","http://opendatacommunities.org/id/metropolitan-district-council/wolverhampton","706697","Radis Community Care","0810201720171011","63.54","TPP - Home Care","190382458","13/10/2017","Older People Care Purchasing","OP Care Purchasing (Spot Placements)","R5420"
"Wolverhampton City Council","http://opendatacommunities.org/id/metropolitan-district-council/wolverhampton","706697","Radis Community Care","0810201720171011","197.68","TPP - Home Care","190382458","13/10/2017","Older People Care Purchasing","OP Care Purchasing (Spot Placements)","R5420"
"Wolverhampton City Council","http://opendatacommunities.org/id/metropolitan-district-council/wolverhampton","706697","Radis Community Care","0810201720171011","98.84","TPP - Home Care","190382458","13/10/2017","Older People Care Purchasing","OP Care Purchasing (Spot Placements)","R5420"
"Wolverhampton City Council","http://opendatacommunities.org/id/metropolitan-district-council/wolverhampton","706697","Radis Community Care","0810201720171011","49.42","TPP - Home Care","190382458","13/10/2017","Older People Care Purchasing","OP Care Purchasing (Spot Placements)","R5420"
"Wolverhampton City Council","http://opendatacommunities.org/id/metropolitan-district-council/wolverhampton","706697","Radis Community Care","0810201720171011","197.68","TPP - Home Care","190382458","13/10/2017","Older People Care Purchasing","OP Care Purchasing (Spot Placements)","R5420"
"Wolverhampton City Council","http://opendatacommunities.org/id/metropolitan-district-council/wolverhampton","706697","Radis Community Care","0810201720171011","194.15","TPP - Home Care","190382458","13/10/2017","Older People Care Purchasing","OP Care Purchasing (Spot Placements)","R5420"
"Wolverhampton City Council","http://opendatacommunities.org/id/metropolitan-district-council/wolverhampton","706697","Radis Community Care","0810201720171011","222.39","TPP - Home Care","190382458","13/10/2017","Older People Care Purchasing","OP Care Purchasing (Spot Placements)","R5420"
"Wolverhampton City Council","http://opendatacommunities.org/id/metropolitan-district-council/wolverhampton","706697","Radis Community Care","0810201720171011","148.26","TPP - Home Care","190382458","13/10/2017","Older People Care Purchasing","OP Care Purchasing (Spot Placements)","R5420"
"Wolverhampton City Council","http://opendatacommunities.org/id/metropolitan-district-council/wolverhampton","706697","Radis Community Care","0810201720171011","91.78","TPP - Home Care","190382458","13/10/2017","Older People Care Purchasing","OP Care Purchasing (Spot Placements)","R5420"
"Wolverhampton City Council","http://opendatacommunities.org/id/metropolitan-district-council/wolverhampton","706697","Radis Community Care","0810201720171011","91.78","TPP - Home Care","190382458","13/10/2017","Older People Care Purchasing","OP Care Purchasing (Spot Placements)","R5420"
"Wolverhampton City Council","http://opendatacommunities.org/id/metropolitan-district-council/wolverhampton","706697","Radis Community Care","0810201720171011","56.48","TPP - Home Care","190382458","13/10/2017","Older People Care Purchasing","OP Care Purchasing (Spot Placements)","R5420"
"Wolverhampton City Council","http://opendatacommunities.org/id/metropolitan-district-council/wolverhampton","706697","Radis Community Care","0810201720171011","127.08","TPP - Home Care","190382458","13/10/2017","Older People Care Purchasing","OP Care Purchasing (Spot Placements)","R5420"
"Wolverhampton City Council","http://opendatacommunities.org/id/metropolitan-district-council/wolverhampton","706697","Radis Community Care","0810201720171011","49.42","TPP - Home Care","190382458","13/10/2017","Older People Care Purchasing","OP Care Purchasing (Spot Placements)","R5420"
"Wolverhampton City Council","http://opendatacommunities.org/id/metropolitan-district-council/wolverhampton","706697","Radis Community Care","0810201720171011","38.83","TPP - Home Care","190382458","13/10/2017","Older People Care Purchasing","OP Care Purchasing (Spot Placements)","R5420"
"Wolverhampton City Council","http://opendatacommunities.org/id/metropolitan-district-council/wolverhampton","706697","Radis Community Care","0810201720171011","98.84","TPP - Home Care","190382458","13/10/2017","Older People Care Purchasing","OP Care Purchasing (Spot Placements)","R5420"
"Wolverhampton City Council","http://opendatacommunities.org/id/metropolitan-district-council/wolverhampton","706697","Radis Community Care","0810201720171011","190.62","TPP - Home Care","190382458","13/10/2017","Older People Care Purchasing","OP Care Purchasing (Spot Placements)","R5420"
"Wolverhampton City Council","http://opendatacommunities.org/id/metropolitan-district-council/wolverhampton","706697","Radis Community Care","0810201720171011","56.48","TPP - Home Care","190382458","13/10/2017","Older People Care Purchasing","OP Care Purchasing (Spot Placements)","R5420"
"Wolverhampton City Council","http://opendatacommunities.org/id/metropolitan-district-council/wolverhampton","706697","Radis Community Care","0810201720171011","74.13","TPP - Home Care","190382458","13/10/2017","Older People Care Purchasing","OP Care Purchasing (Spot Placements)","R5420"
"Wolverhampton City Council","http://opendatacommunities.org/id/metropolitan-district-council/wolverhampton","706697","Radis Community Care","0810201720171011","14.12","TPP - Home Care","190382458","13/10/2017","Older People Care Purchasing","OP Care Purchasing (Spot Placements)","R5420"
"Wolverhampton City Council","http://opendatacommunities.org/id/metropolitan-district-council/wolverhampton","706697","Radis Community Care","0810201720171011","112.96","TPP - Home Care","190382458","13/10/2017","Older People Care Purchasing","OP Care Purchasing (Spot Placements)","R5420"
"Wolverhampton City Council","http://opendatacommunities.org/id/metropolitan-district-council/wolverhampton","706697","Radis Community Care","0810201720171011","77.66","TPP - Home Care","190382458","13/10/2017","Older People Care Purchasing","OP Care Purchasing (Spot Placements)","R5420"
"Wolverhampton City Council","http://opendatacommunities.org/id/metropolitan-district-council/wolverhampton","706697","Radis Community Care","0810201720171011","74.13","TPP - Home Care","190382458","13/10/2017","Older People Care Purchasing","OP Care Purchasing (Spot Placements)","R5420"
"Wolverhampton City Council","http://opendatacommunities.org/id/metropolitan-district-council/wolverhampton","706697","Radis Community Care","0810201720171011","49.42","TPP - Home Care","190382458","13/10/2017","Older People Care Purchasing","OP Care Purchasing (Spot Placements)","R5420"
"Wolverhampton City Council","http://opendatacommunities.org/id/metropolitan-district-council/wolverhampton","706697","Radis Community Care","0810201720171011","162.38","TPP - Home Care","190382458","13/10/2017","Older People Care Purchasing","OP Care Purchasing (Spot Placements)","R5420"
"Wolverhampton City Council","http://opendatacommunities.org/id/metropolitan-district-council/wolverhampton","706697","Radis Community Care","0810201720171011","208.27","TPP - Home Care","190382458","13/10/2017","Older People Care Purchasing","OP Care Purchasing (Spot Placements)","R5420"
"Wolverhampton City Council","http://opendatacommunities.org/id/metropolitan-district-council/wolverhampton","706697","Radis Community Care","0810201720171011","42.36","TPP - Home Care","190382458","13/10/2017","Older People Care Purchasing","OP Care Purchasing (Spot Placements)","R5420"
"Wolverhampton City Council","http://opendatacommunities.org/id/metropolitan-district-council/wolverhampton","706697","Radis Community Care","0810201720171011","98.84","TPP - Home Care","190382458","13/10/2017","Older People Care Purchasing","OP Care Purchasing (Spot Placements)","R5420"
"Wolverhampton City Council","http://opendatacommunities.org/id/metropolitan-district-council/wolverhampton","706697","Radis Community Care","0810201720171011","98.84","TPP - Home Care","190382458","13/10/2017","Older People Care Purchasing","OP Care Purchasing (Spot Placements)","R5420"
"Wolverhampton City Council","http://opendatacommunities.org/id/metropolitan-district-council/wolverhampton","706697","Radis Community Care","0810201720171011","222.39","TPP - Home Care","190382458","13/10/2017","Older People Care Purchasing","OP Care Purchasing (Spot Placements)","R5420"
"Wolverhampton City Council","http://opendatacommunities.org/id/metropolitan-district-council/wolverhampton","706697","Radis Community Care","0810201720171011","35.30","TPP - Home Care","190382458","13/10/2017","Older People Care Purchasing","OP Care Purchasing (Spot Placements)","R5420"
"Wolverhampton City Council","http://opendatacommunities.org/id/metropolitan-district-council/wolverhampton","706697","Radis Community Care","0810201720171011","21.18","TPP - Home Care","190382458","13/10/2017","Older People Care Purchasing","OP Care Purchasing (Spot Placements)","R5420"
"Wolverhampton City Council","http://opendatacommunities.org/id/metropolitan-district-council/wolverhampton","706697","Radis Community Care","0810201720171011","465.96","TPP - Home Care","190382458","13/10/2017","Older People Care Purchasing","OP Care Purchasing (Spot Placements)","R5420"
"Wolverhampton City Council","http://opendatacommunities.org/id/metropolitan-district-council/wolverhampton","706697","Radis Community Care","0810201720171011","49.42","TPP - Home Care","190382458","13/10/2017","Older People Care Purchasing","OP Care Purchasing (Spot Placements)","R5420"
"Wolverhampton City Council","http://opendatacommunities.org/id/metropolitan-district-council/wolverhampton","706697","Radis Community Care","0810201720171011","49.42","TPP - Home Care","190382458","13/10/2017","Older People Care Purchasing","OP Care Purchasing (Spot Placements)","R5420"
"Wolverhampton City Council","http://opendatacommunities.org/id/metropolitan-district-council/wolverhampton","706697","Radis Community Care","0810201720171011","155.32","TPP - Home Care","190382458","13/10/2017","Older People Care Purchasing","OP Care Purchasing (Spot Placements)","R5420"
"Wolverhampton City Council","http://opendatacommunities.org/id/metropolitan-district-council/wolverhampton","706697","Radis Community Care","0810201720171011","473.02","TPP - Home Care","190382458","13/10/2017","Older People Care Purchasing","OP Care Purchasing (Spot Placements)","R5420"
"Wolverhampton City Council","http://opendatacommunities.org/id/metropolitan-district-council/wolverhampton","706697","Radis Community Care","0810201720171011","70.60","TPP - Home Care","190382458","13/10/2017","Older People Care Purchasing","OP Care Purchasing (Spot Placements)","R5420"
"Wolverhampton City Council","http://opendatacommunities.org/id/metropolitan-district-council/wolverhampton","706697","Radis Community Care","0810201720171011","102.37","TPP - Home Care","190382458","13/10/2017","Older People Care Purchasing","OP Care Purchasing (Spot Placements)","R5420"
"Wolverhampton City Council","http://opendatacommunities.org/id/metropolitan-district-council/wolverhampton","706697","Radis Community Care","0810201720171011","201.21","TPP - Home Care","190382458","13/10/2017","Older People Care Purchasing","OP Care Purchasing (Spot Placements)","R5420"
"Wolverhampton City Council","http://opendatacommunities.org/id/metropolitan-district-council/wolverhampton","706697","Radis Community Care","0810201720171011","98.84","TPP - Home Care","190382458","13/10/2017","Older People Care Purchasing","OP Care Purchasing (Spot Placements)","R5420"
"Wolverhampton City Council","http://opendatacommunities.org/id/metropolitan-district-council/wolverhampton","706697","Radis Community Care","0810201720171011","116.49","TPP - Home Care","190382458","13/10/2017","Older People Care Purchasing","OP Care Purchasing (Spot Placements)","R5420"
"Wolverhampton City Council","http://opendatacommunities.org/id/metropolitan-district-council/wolverhampton","706697","Radis Community Care","0810201720171011","39.00","TPP - Home Care","190382458","13/10/2017","Older People Care Purchasing","OP Care Purchasing (Spot Placements)","R5420"
"Wolverhampton City Council","http://opendatacommunities.org/id/metropolitan-district-council/wolverhampton","706697","Radis Community Care","0810201720171011","21.18","TPP - Home Care","190382458","13/10/2017","Older People Care Purchasing","OP Care Purchasing (Spot Placements)","R5420"
"Wolverhampton City Council","http://opendatacommunities.org/id/metropolitan-district-council/wolverhampton","706697","Radis Community Care","0810201720171011","42.36","TPP - Home Care","190382458","13/10/2017","Older People Care Purchasing","OP Care Purchasing (Spot Placements)","R5420"
"Wolverhampton City Council","http://opendatacommunities.org/id/metropolitan-district-council/wolverhampton","706697","Radis Community Care","0810201720171011","158.85","TPP - Home Care","190382458","13/10/2017","Older People Care Purchasing","OP Care Purchasing (Spot Placements)","R5420"
"Wolverhampton City Council","http://opendatacommunities.org/id/metropolitan-district-council/wolverhampton","706697","Radis Community Care","0810201720171011","67.07","TPP - Home Care","190382458","13/10/2017","Older People Care Purchasing","OP Care Purchasing (Spot Placements)","R5420"
"Wolverhampton City Council","http://opendatacommunities.org/id/metropolitan-district-council/wolverhampton","706697","Radis Community Care","0810201720171011","70.60","TPP - Home Care","190382458","13/10/2017","Older People Care Purchasing","OP Care Purchasing (Spot Placements)","R5420"
"Wolverhampton City Council","http://opendatacommunities.org/id/metropolitan-district-council/wolverhampton","706697","Radis Community Care","0810201720171011","141.20","TPP - Home Care","190382458","13/10/2017","Older People Care Purchasing","OP Care Purchasing (Spot Placements)","R5420"
"Wolverhampton City Council","http://opendatacommunities.org/id/metropolitan-district-council/wolverhampton","706697","Radis Community Care","0810201720171011","151.79","TPP - Home Care","190382458","13/10/2017","Older People Care Purchasing","OP Care Purchasing (Spot Placements)","R5420"
"Wolverhampton City Council","http://opendatacommunities.org/id/metropolitan-district-council/wolverhampton","706697","Radis Community Care","0810201720171011","56.48","TPP - Home Care","190382458","13/10/2017","Older People Care Purchasing","OP Care Purchasing (Spot Placements)","R5420"
